Workbook

Sheet A1.1 LDC Information
C2: ="Name of LDC: " &D20 -> Name of LDC: Chapleau Public Utilities Corporation
C3: ="File Number: " & D22 -> File Number: EB-2010-0073
C4: Version : 1.0
C10: ='Z1.0 OEB Control Sheet'!C2 -> LDC Information
C20: Applicant Name | D20: Chapleau Public Utilities Corporation | F20: OEB Audit | AA20: Company Name | AB20: Licence Number | AC20: Application Type | AD20: EB Number | AE20: Company Shortname | AF20: SAExtension | AG20: Translation
F21: ='Z1.0 OEB Control Sheet'!F2 -> No | AA21: Atikokan Hydro Inc. | AB21: ED-2003-0001 | AC21: IRM3 | AD21: EB-2010-0064 | AE21: Atikokan | AF21: 001
C22: OEB Application Number | D22: =IF(ISNA(VLOOKUP(D20,AA20:AG106,4,0)),"",VLOOKUP(D20,AA20:AG106,4,0)) -> EB-2010-0073 | AA22: Attawapiskat Power Corporation | AB22: ED-2001-0090 | AC22: COS | AD22: EB-2010-0124 | AE22: Attawapiskat | AF22: 001 | AG22: Cree
AA23: Bluewater Power Distribution Corporation | AB23: ED-2002-0517 | AC23: IRM3 | AD23: EB-2010-0065 | AE23: Bluewater | AF23: 001
C24: LDC Licence Number | D24: =IF(ISNA(VLOOKUP(D20,AA20:AG106,2,0)),"",VLOOKUP(D20,AA20:AG106,2,0)) -> ED-2002-0528 | AA24: Brant County Power Inc. | AB24: ED-2002-0522 | AC24: COS | AD24: EB-2010-0125 | AE24: Brant County | AF24: 001
AA25: Brantford Power Inc. | AB25: ED-2003-0060 | AC25: IRM3 | AD25: EB-2010-0066 | AE25: Brantford | AF25: 001
C26: Application Type | D26: =IF(ISNA(VLOOKUP(D20,AA20:AG106,3,0)),"",VLOOKUP(D20,AA20:AG106,3,0)) -> IRM3 | AA26: Burlington Hydro Inc. | AB26: ED-2003-0004 | AC26: IRM3 | AD26: EB-2010-0067 | AE26: Burlington | AF26: 001
AA27: COLLUS Power Corporation | AB27: ED-2002-0518 | AC27: IRM3 | AD27: EB-2010-0076 | AE27: COLLUS | AF27: 001
AA28: Cambridge and North Dumfries Hydro Inc. | AB28: ED-2002-0574 | AC28: IRM3 | AD28: EB-2010-0068 | AE28: CNDHI | AF28: 001
AA29: Canadian Niagara Power Inc. - Fort Erie | AB29: ED-2002-0572 | AC29: COS | AD29: EB-2010-0070 | AE29: CNPI - FE | AF29: 001
AA30: Canadian Niagara Power Inc. - Eastern Ontario Power | AB30: ED-2002-0572 | AC30: COS | AD30: EB-2010-0071 | AE30: CNPI - EOP | AF30: 002
AA31: Canadian Niagara Power Inc. - Port Colborne | AB31: ED-2002-0572 | AC31: COS | AD31: EB-2010-0069 | AE31: CNPI - PC | AF31: 003
AA32: Centre Wellington Hydro Ltd. | AB32: ED-2002-0498 | AC32: IRM3 | AD32: EB-2010-0072 | AE32: Centre Wellington | AF32: 001
AA33: Chapleau Public Utilities Corporation | AB33: ED-2002-0528 | AC33: IRM3 | AD33: EB-2010-0073 | AE33: Chapleau | AF33: 001 | AG33: French
AA34: Chatham-Kent Hydro Inc. | AB34: ED-2002-0563 | AC34: IRM3 | AD34: EB-2010-0074 | AE34: Chatham-Kent | AF34: 001
AA35: Clinton Power Corporation | AB35: ED-2002-0496 | AC35: IRM3 | AD35: EB-2010-0075 | AE35: Clinton | AF35: 001
AA36: Cooperative Hydro Embrun Inc. | AB36: ED-2002-0493 | AC36: IRM3 | AD36: EB-2010-0077 | AE36: CHEI | AF36: 001 | AG36: French
AA37: E.L.K. Energy Inc. | AB37: ED-2003-0015 | AC37: IRM2 | AD37: EB-2010-0126 | AE37: ELK | AF37: 001
AA38: ENWIN Utilities Ltd. | AB38: ED-2002-0527 | AC38: IRM3 | AD38: EB-2010-0079 | AE38: ENWIN | AF38: 001 | AG38: French
AA39: Enersource Hydro Mississauga Inc. | AB39: ED-2003-0017 | AC39: IRM3 | AD39: EB-2010-0078 | AE39: Enersource | AF39: 001 | AG39: French
AA40: Erie Thames Powerlines Corporation | AB40: ED-2002-0516 | AC40: IRM3 | AD40: EB-2010-0080 | AE40: ETPC | AF40: 001
AA41: Espanola Regional Hydro Distribution Corporation | AB41: ED-2002-0502 | AC41: IRM3 | AD41: EB-2010-0081 | AE41: Espanola | AF41: 001 | AG41: French
AA42: Essex Powerlines Corporation | AB42: ED-2002-0499 | AC42: IRM3 | AD42: EB-2010-0082 | AE42: Essex | AF42: 001 | AG42: French
AA43: Festival Hydro Inc. | AB43: ED-2002-0513 | AC43: IRM3 | AD43: EB-2010-0083 | AE43: Festival | AF43: 001
AA44: Fort Albany Power Corporation | AB44: ED-2003-0079 | AC44: COS | AD44: EB-2010-0127 | AE44: Fort Albany | AF44: 001 | AG44: Cree
AA45: Fort Frances Power Corporation | AB45: ED-2003-0028 | AC45: IRM2 | AD45: EB-2010-0128 | AE45: FFPC | AF45: 001
AA46: Greater Sudbury Hydro Inc. - Greater Sudbury | AB46: ED-2002-0559 | AC46: IRM3 | AD46: EB-2010-0085 | AE46: GSHI - Greater Sudbury | AF46: 001 | AG46: French
AA47: Greater Sudbury Hydro Inc. - West Nipissing | AB47: ED-2002-0559 | AC47: IRM3 | AD47: EB-2010-0085 | AE47: GSHI - West Nipissing | AF47: 002 | AG47: French
AA48: Grimsby Power Inc. | AB48: ED-2002-0554 | AC48: IRM2 | AD48: EB-2010-0129 | AE48: Grimsby | AF48: 001
AA49: Guelph Hydro Electric Systems Inc. | AB49: ED-2002-0565 | AC49: IRM3 | AD49: EB-2010-0130 | AE49: Guelph | AF49: 001
AA50: Haldimand County Hydro Inc. | AB50: ED-2002-0539 | AC50: IRM3 | AD50: EB-2010-0086 | AE50: Haldimand | AF50: 001
AA51: Halton Hills Hydro Inc. | AB51: ED-2002-0552 | AC51: IRM3 | AD51: EB-2010-0087 | AE51: Halton Hills Hydro | AF51: 001
AA52: Hearst Power Distribution Company Limited | AB52: ED-2002-0533 | AC52: IRM3 | AD52: EB-2010-0088 | AE52: Hearst | AF52: 001 | AG52: French
AA53: Horizon Utilities Corporation | AB53: ED-2006-0031 | AC53: COS | AD53: EB-2010-0131 | AE53: Horizon | AF53: 001 | AG53: French
AA54: Hydro 2000 Inc. | AB54: ED-2002-0542 | AC54: IRM3 | AD54: EB-2010-0089 | AE54: Hydro 2000 | AF54: 001 | AG54: French
AA55: Hydro Hawkesbury Inc. | AB55: ED-2003-0027 | AC55: IRM3 | AD55: EB-2010-0090 | AE55: Hawkesbury | AF55: 001 | AG55: French
AA56: Hydro One Brampton Networks Inc. | AB56: ED-2003-0038 | AC56: COS | AD56: EB-2010-0132 | AE56: HONI Brampton | AF56: 001 | AG56: French
AA57: Hydro One Remote Communities Inc. | AB57: ED-2003-0037 | AC57: IRM3 | AD57: EB-2010-0092 | AE57: HORCI | AF57: 001 | AG57: Cree
AA58: Hydro Ottawa Limited | AB58: ED-2002-0556 | AC58: COS | AD58: EB-2010-0133 | AE58: Ottawa | AF58: 001 | AG58: French
AA59: Innisfil Hydro Distribution Systems Limited | AB59: ED-2002-0520 | AC59: IRM3 | AD59: EB-2010-0093 | AE59: Innisfil | AF59: 001
AA60: Kashechewan Power Corporation | AB60: ED-2003-0081 | AC60: COS | AD60: EB-2010-0134 | AE60: Kashechewan | AF60: 001 | AG60: Cree
AA61: Kenora Hydro Electric Corporation Ltd. | AB61: ED-2003-0030 | AC61: COS | AD61: EB-2010-0135 | AE61: Kenora | AF61: 001
AA62: Kingston Hydro Corporation | AB62: ED-2003-0057 | AC62: COS | AD62: EB-2010-0136 | AE62: Kingston | AF62: 001 | AG62: French
AA63: Kitchener-Wilmot Hydro Inc. | AB63: ED-2002-0573 | AC63: IRM3 | AD63: EB-2010-0094 | AE63: KWHI | AF63: 001
AA64: Lakefront Utilities Inc. | AB64: ED-2002-0545 | AC64: IRM3 | AD64: EB-2010-0095 | AE64: Lakefront | AF64: 001
AA65: Lakeland Power Distribution Ltd. | AB65: ED-2002-0540 | AC65: IRM3 | AD65: EB-2010-0096 | AE65: Lakeland | AF65: 001
AA66: Middlesex Power Distribution Corporation - Middlesex | AB66: ED-2003-0059 | AC66: IRM2 | AD66: EB-2010-0098 | AE66: Middlesex - Main | AF66: 001
AA67: Middlesex Power Distribution Corporation - Newbury | AB67: ED-2003-0059 | AC67: IRM2 | AD67: EB-2010-0098 | AE67: Middlesex - Newbury | AF67: 002
AA68: Middlesex Power Distribution Corporation - Dutton | AB68: ED-2003-0059 | AC68: IRM2 | AD68: EB-2010-0098 | AE68: Middlesex - Dutton | AF68: 003
AA69: Midland Power Utility Corporation | AB69: ED-2002-0541 | AC69: IRM3 | AD69: EB-2010-0099 | AE69: Midland | AF69: 001
AA70: Milton Hydro Distribution Inc. | AB70: ED-2003-0014 | AC70: COS | AD70: EB-2010-0137 | AE70: Milton | AF70: 001
AA71: Newmarket - Tay Power Distribution Ltd. - Newmarket | AB71: ED-2007-0624 | AC71: IRM3 | AD71: EB-2010-0100 | AE71: NTPDL - Newmarket | AF71: 001
AA72: Newmarket - Tay Power Distribution Ltd. - Tay | AB72: ED-2007-0624 | AC72: IRM3 | AD72: EB-2010-0100 | AE72: NTPDL - Tay | AF72: 002
AA73: Niagara Peninsula Energy Inc. - Peninsula West | AB73: ED-2007-0749 | AC73: COS | AD73: EB-2010-0138 | AE73: NPEI - Pen West | AF73: 001
AA74: Niagara Peninsula Energy Inc. - Niagara Falls | AB74: ED-2007-0749 | AC74: COS | AD74: EB-2010-0138 | AE74: NPEI - Niagara Falls | AF74: 002
AA75: Niagara-on-the-Lake Hydro Inc. | AB75: ED-2002-0547 | AC75: IRM3 | AD75: EB-2010-0101 | AE75: NOTL | AF75: 001
AA76: Norfolk Power Distribution Inc. | AB76: ED-2002-0521 | AC76: COS | AD76: EB-2010-0139 | AE76: Norfolk | AF76: 001
AA77: North Bay Hydro Distribution Limited | AB77: ED-2003-0024 | AC77: IRM3 | AD77: EB-2010-0102 | AE77: North Bay | AF77: 001 | AG77: French
AA78: Oakville Hydro Electricity Distribution Inc. | AB78: ED-2003-0135 | AC78: IRM3 | AD78: EB-2010-0104 | AE78: Oakville | AF78: 001
AA79: Orangeville Hydro Limited | AB79: ED-2002-0500 | AC79: IRM3 | AD79: EB-2010-0105 | AE79: Orangeville | AF79: 001
AA80: Orillia Power Distribution Corporation | AB80: ED-2002-0530 | AC80: IRM3 | AD80: EB-2010-0106 | AE80: Orillia | AF80: 001
AA81: Oshawa PUC Networks Inc. | AB81: ED-2002-0560 | AC81: COS | AD81: EB-2010-0107 | AE81: Oshawa | AF81: 001
AA82: Ottawa River Power Corporation | AB82: ED-2003-0033 | AC82: IRM3 | AD82: EB-2010-0108 | AE82: Ottawa River | AF82: 001 | AG82: French
AA83: PUC Distribution Inc. | AB83: ED-2002-0546 | AC83: IRM3 | AD83: EB-2010-0111 | AE83: PUC | AF83: 001 | AG83: French
AA84: Parry Sound Power Corporation | AB84: ED-2003-0006 | AC84: COS | AD84: EB-2010-0140 | AE84: Parry Sound | AF84: 001
AA85: Peterborough Distribution Incorporated | AB85: ED-2002-0504 | AC85: IRM3 | AD85: EB-2010-0109 | AE85: Peterborough | AF85: 001
AA86: PowerStream Inc. - South | AB86: ED-2004-0420 | AC86: IRM3 | AD86: EB-2010-0110 | AE86: PowerStream - South | AF86: 001
AA87: PowerStream Inc. - Barrie | AB87: ED-2004-0420 | AC87: IRM3 | AD87: EB-2010-0110 | AE87: PowerStream - Barrie | AF87: 002
AA88: Renfrew Hydro Inc. | AB88: ED-2002-0577 | AC88: IRM3 | AD88: EB-2010-0112 | AE88: Renfrew | AF88: 001
AA89: Rideau St. Lawrence Distribution Inc. | AB89: ED-2003-0003 | AC89: IRM3 | AD89: EB-2010-0113 | AE89: RSLDI | AF89: 001
AA90: Sioux Lookout Hydro Inc. | AB90: ED-2002-0514 | AC90: IRM3 | AD90: EB-2010-0114 | AE90: Sioux Lookout | AF90: 001
AA91: St. Thomas Energy Inc. | AB91: ED-2002-0523 | AC91: COS | AD91: EB-2010-0141 | AE91: St. Thomas | AF91: 001
AA92: Thunder Bay Hydro Electricity Distribution Inc. | AB92: ED-2002-0529 | AC92: IRM3 | AD92: EB-2010-0115 | AE92: Thunder Bay Hydro | AF92: 001
AA93: Tillsonburg Hydro Inc. | AB93: ED-2003-0026 | AC93: IRM3 | AD93: EB-2010-0116 | AE93: Tillsonburg | AF93: 001
AA94: Toronto Hydro-Electric System Limited | AB94: ED-2002-0497 | AC94: COS | AD94: EB-2010-0142 | AE94: THESL | AF94: 001 | AG94: French
AA95: Veridian Connections Inc. - Veridian | AB95: ED-2002-0503 | AC95: IRM3 | AD95: EB-2010-0117 | AE95: Veridian - Main | AF95: 001
AA96: Veridian Connections Inc. - Gravenhurst | AB96: ED-2002-0503 | AC96: IRM3 | AD96: EB-2010-0117 | AE96: Veridian - Gravenhurst | AF96: 002
AA97: Wasaga Distribution Inc. | AB97: ED-2002-0544 | AC97: COS | AD97: EB-2010-0143 | AE97: Wasaga | AF97: 001
AA98: Waterloo North Hydro Inc. | AB98: ED-2002-0575 | AC98: COS | AD98: EB-2010-0144 | AE98: Waterloo North | AF98: 001
AA99: Welland Hydro-Electric System Corp. | AB99: ED-2003-0002 | AC99: IRM3 | AD99: EB-2010-0118 | AE99: Welland | AF99: 001 | AG99: French
AA100: Wellington North Power Inc. | AB100: ED-2002-0511 | AC100: IRM3 | AD100: EB-2010-0119 | AE100: Wellington North | AF100: 001
AA101: West Coast Huron Energy Inc. | AB101: ED-2002-0510 | AC101: IRM3 | AD101: EB-2010-0120 | AE101: WCHEI | AF101: 001
AA102: West Perth Power Inc. | AB102: ED-2002-0508 | AC102: IRM3 | AD102: EB-2010-0121 | AE102: West Perth | AF102: 001
AA103: Westario Power Inc. | AB103: ED-2002-0515 | AC103: IRM3 | AD103: EB-2010-0122 | AE103: Westario | AF103: 001
AA104: Whitby Hydro Electric Corporation | AB104: ED-2002-0571 | AC104: IRM3 | AD104: EB-2010-0123 | AE104: Whitby | AF104: 001
AA105: Woodstock Hydro Services Inc. | AB105: ED-2003-0011 | AC105: COS | AD105: EB-2010-0145 | AE105: Woodstock | AF105: 001

Sheet A2.1 Table of Contents
C2: ='A1.1 LDC Information'!C2 -> Name of LDC: Chapleau Public Utilities Corporation
C3: ='A1.1 LDC Information'!C3 -> File Number: EB-2010-0073
C4: ='A1.1 LDC Information'!C4 -> Version : 1.0
C10: ='Z1.0 OEB Control Sheet'!C3 -> Table of Contents
C20: Sheet Name | D20: Purpose of Sheet
C22: A1.1 LDC Information | D22: =VLOOKUP(C22,'Z1.0 OEB Control Sheet'!D:G,4,0) -> Enter LDC Data
C24: A2.1 Table of Contents | D24: =VLOOKUP(C24,'Z1.0 OEB Control Sheet'!D:G,4,0) -> Table of Contents
C26: B1.1 Rate Class And RTSR Rates | D26: =VLOOKUP(C26,'Z1.0 OEB Control Sheet'!D:G,4,0) -> Enter Rate Class And RTSR Rates
C28: B1.2 Dist Billing Determinants | D28: =VLOOKUP(C28,'Z1.0 OEB Control Sheet'!D:G,4,0) -> Enter Distributor Billing Determinants
C30: B1.3 UTR's and Sub-Transmission | D30: =VLOOKUP(C30,'Z1.0 OEB Control Sheet'!D:G,4,0) -> Current and Forecasted UTR's and Hydro One Sub-Transmission Rates
C32: C1.1 Historical Wholesale | D32: =VLOOKUP(C32,'Z1.0 OEB Control Sheet'!D:G,4,0) -> Enter Historical Wholesale Transmission
C34: C1.2 Current Wholesale | D34: =VLOOKUP(C34,'Z1.0 OEB Control Sheet'!D:G,4,0) -> Calculates Current Wholesale Transmission
C36: C1.3 Forecast Wholesale | D36: =VLOOKUP(C36,'Z1.0 OEB Control Sheet'!D:G,4,0) -> Calculates Forecast Wholesale Transmission
C38: D1.1 Adj Network to Curr Whsl | D38: =VLOOKUP(C38,'Z1.0 OEB Control Sheet'!D:G,4,0) -> Calculates the Adjustment for RTSR-Network needed to recover Current Wholesale
C40: D1.2 Adj Conn to Curr Whsl | D40: =VLOOKUP(C40,'Z1.0 OEB Control Sheet'!D:G,4,0) -> Calculates the Adjustment for RTSR-Connection needed to recover Current Wholesale
C42: E1.1 Adj Network to Fcst Whsl | D42: =VLOOKUP(C42,'Z1.0 OEB Control Sheet'!D:G,4,0) -> Calculates the Adjustment for RTSR-Network needed to recover Forecast Wholesale
C44: E1.2 Adj Conn to Fcst Whsl | D44: =VLOOKUP(C44,'Z1.0 OEB Control Sheet'!D:G,4,0) -> Calculates the Adjustment for RTSR-Connection needed to recover Forecast Wholesale
C46: F1.1 IRM RTSR Adj - Network | D46: =VLOOKUP(C46,'Z1.0 OEB Control Sheet'!D:G,4,0) -> Calculates the IRM RTSR Adjustment Calculation - Network for Rate Generator
C48: F1.2 IRM RTSR Adj - Connection | D48: =VLOOKUP(C48,'Z1.0 OEB Control Sheet'!D:G,4,0) -> Calculates the IRM RTSR Adjustment Calculation - Connection for Rate Generator

Sheet B1.1 Rate Class And RTSR Rates
C2: ='A1.1 LDC Information'!C2 -> Name of LDC: Chapleau Public Utilities Corporation
C3: ='A1.1 LDC Information'!C3 -> File Number: EB-2010-0073
C4: ='A1.1 LDC Information'!C4 -> Version : 1.0
C10: ='Z1.0 OEB Control Sheet'!C4 -> Rate Class And 2010 RTSR Rates
B20: Control | C20: Rate Group | D20: Rate Class | E20: Fixed Metric | F20: Vol Metric | H20: RTSR - Network | J20: RTSR - Connection | AA20: Residential | AB20: Threshold | AD20: Less Than 50 | AE20: Threshold | AG20: Greater Than 50 | AH20: Threshold | AJ20: Large Use | AK20: Threshold | AM20: USL | AN20: Threshold | AP20: Sentinel | AQ20: Threshold | AS20: Street | AT20: Threshold | AV20: EMB | AY20: SB
AA21: Residential | AB21: 250 / 2,250 | AD21: General Service Less Than 50 kW | AE21: 2,000 / 20,000 | AG21: General Service 50 to 499 kW | AH21: 50 / 500 | AJ21: Large Use | AK21: 5,000 / 100,000 | AM21: Unmetered Scattered Load | AN21: 500 / 20,000 | AP21: Sentinel Lighting | AQ21: 0.2 / 1.0 | AS21: Street Lighting | AT21: 0.2 / 1.0 | AV21: Embedded Distributor | AY21: Stand-By
B22: 1 | C22: RES | D22: Residential | E22: Customer | F22: kWh | H22: 0.0053 | J22: 0.0015 | AA22: Residential Regular | AB22: 250 / 2,250 | AD22: General Service Less Than 50 kW – Single Phase energy-billed [G1] | AE22: 2,000 / 20,000 | AG22: General Service 50 to 699 kW | AH22: 50 / 700 | AJ22: Large Use - Regular | AK22: 5,000 / 100,000 | AV22: Low Voltage Wheeling Charge Rate | AY22: Standby Power
B23: 2 | C23: GSLT50 | D23: General Service Less Than 50 kW | E23: Customer | F23: kWh | H23: 0.0047 | J23: 0.0014 | AA23: Residential Urban | AB23: 250 / 2,250 | AD23: General Service Less Than 50 kW – Three Phase energy-billed [G3] | AE23: 2,000 / 20,000 | AG23: General Service 50 to 999 kW | AH23: 50 / 1,000 | AJ23: Large Use > 5000 kW | AK23: 5,000 / 100,000 | AY23: Standby Power – INTERIM APPROVAL
B24: 3 | C24: GSGT50 | D24: General Service 50 to 999 kW | E24: Customer | F24: kW | H24: 1.9232 | J24: 0.5431 | AA24: Residential Urban Year-Round | AB24: 250 / 2,250 | AD24: General Service Less Than 50 kW – Transmission Class energy-billed [T] | AE24: 2,000 / 20,000 | AG24: General Service 50 to 999 kW - Interval Metered | AH24: 50 / 1,000 | AJ24: Large Use - 3TS | AK24: 5,000 / 100,000 | AY24: Standby Power - APPROVED ON AN INTERIM BASIS
B25: 4 | C25: USL | D25: Unmetered Scattered Load | E25: Connection | F25: kWh | H25: 0.0047 | J25: 0.0014 | AA25: Residential Suburban | AB25: 250 / 2,250 | AD25: General Service Less Than 50 kW – Urban energy-billed [UG] | AE25: 2,000 / 20,000 | AG25: General Service 50 to 1,000 kW | AH25: 50 / 1,000 | AJ25: Large Use - Ford Annex | AK25: 5,000 / 100,000 | AY25: Standby - General Service 50 - 1,000 kW
B26: 5 | C26: Sen | D26: Sentinel Lighting | E26: Connection | F26: kW | H26: 1.4579 | J26: 0.4287 | AA26: Residential Suburban Seasonal | AB26: 250 / 2,250 | AD26: Westport Sewage Treatment Plant | AE26: 2,000 / 20,000 | AG26: General Service 50 to 1,000 kW - Interval Meters | AH26: 50 / 1,000 | AY26: Standby Power General Service 50 to 1,499 kW
B27: 6 | C27: SL | D27: Street Lighting | E27: Connection | F27: kW | H27: 1.4505 | J27: 0.4199 | AA27: Residential Suburban Year Round | AB27: 250 / 2,250 | AD27: Small Commercial and USL - per meter | AE27: 2,000 / 20,000 | AG27: General Service 50 to 1,000 kW - Non Interval Meters | AH27: 50 / 1,000 | AY27: Standby - General Service 1,000 - 5,000 kW
B28: 7 | C28: NA | D28: Rate Class 7 | E28: NA | F28: NA | AA28: Residential - Time of Use | AB28: 250 / 2,250 | AD28: Small Commercial and USL - per connection | AE28: 2,000 / 20,000 | AG28: General Service 50 to 1,499 kW | AH28: 50 / 1,500 | AY28: Standby Power General Service 1,500 to 4,999 kW
B29: 8 | C29: NA | D29: Rate Class 8 | E29: NA | F29: NA | AA29: Residential - Hensall | AB29: 250 / 2,250 | AD29: Farms – Single Phase energy-billed [F1] | AE29: 2,000 / 20,000 | AG29: General Service 50 to 1,499 kW - Interval Metered | AH29: 50 / 1,500 | AY29: Standby - Large Use
B30: 9 | C30: NA | D30: Rate Class 9 | E30: NA | F30: NA | AA30: Residential – High Density [R1] | AB30: 250 / 2,250 | AG30: General Service 50 to 2,499 kW | AH30: 50 / 2,500 | AY30: Standby Power General Service Large Use
B31: 10 | C31: NA | D31: Rate Class 10 | E31: NA | F31: NA | AA31: Residential – Normal Density [R2] | AB31: 250 / 2,250 | AG31: General Service 50 to 2,999 kW | AH31: 50 / 3,000 | AY31: Standby Distribution Service
B32: 11 | C32: NA | D32: Rate Class 11 | E32: NA | F32: NA | AA32: Seasonal Residential – High Density [R3] | AB32: 250 / 2,250 | AG32: General Service 50 to 2,999 kW - Time of Use | AH32: 50 / 3,000
B33: 12 | C33: NA | D33: Rate Class 12 | E33: NA | F33: NA | AA33: Seasonal Residential – Normal Density [R4] | AB33: 250 / 2,250 | AG33: General Service 50 to 4,999 kW | AH33: 50 / 5,000
B34: 13 | C34: NA | D34: Rate Class 13 | E34: NA | F34: NA | AA34: Residential – Urban [UR] | AB34: 250 / 2,250 | AG34: General Service 50 to 4,999 kW – Interval Metered | AH34: 50 / 5,000
B35: 14 | C35: NA | D35: Rate Class 14 | E35: NA | F35: NA | AG35: General Service 50 to 4,999 kW - Time of Use | AH35: 50 / 5,000
B36: 15 | C36: NA | D36: Rate Class 15 | E36: NA | F36: NA | AG36: General Service 50 to 4,999 kW (CoGeneration) | AH36: 50 / 5,000
B37: 16 | C37: NA | D37: Rate Class 16 | E37: NA | F37: NA | AG37: General Service 50 to 4,999 kW (formerly Time of Use) | AH37: 50 / 5,000
B38: 17 | C38: NA | D38: Rate Class 17 | E38: NA | F38: NA | AG38: General Service 500 to 4,999 kW | AH38: 500 / 5,000
B39: 18 | C39: NA | D39: Rate Class 18 | E39: NA | F39: NA | AG39: General Service 700 to 4,999 kW | AH39: 700 / 5,000
B40: 19 | C40: NA | D40: Rate Class 19 | E40: NA | F40: NA | AG40: General Service 1,000 to 2,999 kW | AH40: 1,000 / 3,000
B41: 20 | C41: NA | D41: Rate Class 20 | E41: NA | F41: NA | AG41: General Service 1,000 to 4,999 kW | AH41: 1,000 / 5,000
B42: 21 | C42: NA | D42: Rate Class 21 | E42: NA | F42: NA | AG42: General Service 1,000 to 4,999 kW - Interval Meters | AH42: 1,000 / 5,000
B43: 22 | C43: NA | D43: Rate Class 22 | E43: NA | F43: NA | AG43: General Service 1,000 To 4,999 kW (co-generation) | AH43: 1,000 / 5,000
B44: 23 | C44: NA | D44: Rate Class 23 | E44: NA | F44: NA | AG44: General Service Greater Than 1,000 kW | AH44: 1,000 / 5,000
B45: 24 | C45: NA | D45: Rate Class 24 | E45: NA | F45: NA | AG45: General Service Intermediate Rate Class 1000 To 4999 kW (formerly Large Use Customers) | AH45: 1,000 / 5,000
B46: 25 | C46: NA | D46: Rate Class 25 | E46: NA | F46: NA | AG46: General Service Intermediate Rate Class 1000 To 4999 kW (formerly General Service > 50 kW Customers) | AH46: 1,000 / 5,000
AG47: General Service 1,500 to 4,999 kW | AH47: 1,500 / 5,000
AG48: General Service Equal To Or Greater Than 1,500 kW | AH48: 1,500 / 5,000
AG49: General Service Equal To Or Greater Than 1,500 kW - Interval Metered | AH49: 1,500 / 5,000
AG50: General Service Intermediate 1,000 To 4,999 kW | AH50: 1,500 / 5,000
AG51: General Service 2,500 to 4,999 kW | AH51: 2,500 / 5,000
AG52: General Service 3,000 to 4,999 kW | AH52: 3,000 / 5,000
AG53: General Service 3,000 to 4,999 kW - Interval Metered | AH53: 3,000 / 5,000
AG54: General Service 3,000 to 4,999 kW - Intermediate Use | AH54: 3,000 / 5,000
AG55: General Service 3,000 to 4.999 kW - Time of Use | AH55: 3,000 / 5,000
AG56: Intermediate With Self Generation | AH56: 3,000 / 5,000
AG57: General Service - Commercial | AH57: 50 / 5,000
AG58: General Service - Institutional | AH58: 50 / 5,000
AG59: Farms – Three Phase energy-billed [F3] | AH59: 50 / 5,000

Sheet B1.2 Dist Billing Determinants
C2: ='A1.1 LDC Information'!C2 -> Name of LDC: Chapleau Public Utilities Corporation
C3: ='A1.1 LDC Information'!C3 -> File Number: EB-2010-0073
C4: ='A1.1 LDC Information'!C4 -> Version : 1.0
C10: ='Z1.0 OEB Control Sheet'!C5 -> 2009 Distributor Billing Determinants
C15: Loss Adjusted Metered kWh | E15: No
C17: Loss Adjusted Metered kW | E17: No
C20: ='B1.1 Rate Class And RTSR Rates'!D20 -> Rate Class | E20: ='B1.1 Rate Class And RTSR Rates'!F20 -> Vol Metric | G20: Billed Customers or Connections | H20: Metered kWh | I20: Metered kW | K20: Applicable Loss Factor | M20: Load Factor | O20: Loss Adjusted Billed kWh | Q20: Loss Adjusted Billed kW
H21: A | I21: B | K21: C | M21: D = A / (B * 730) | O21: E = A * C | Q21: F = B * C
C22: ='B1.1 Rate Class And RTSR Rates'!D22 -> Residential | E22: ='B1.1 Rate Class And RTSR Rates'!F22 -> kWh | G22: 0 | H22: =14767661+504291 -> 15271952 | I22: 0 | K22: 1.0654 | M22: =IF(E22="kW",IF(I22<>0,H22/(I22*30.4*24),""),"") ->  | O22: =H22*1 -> 15271952 | Q22: =I22*1 -> 0
C23: ='B1.1 Rate Class And RTSR Rates'!D23 -> General Service Less Than 50 kW | E23: ='B1.1 Rate Class And RTSR Rates'!F23 -> kWh | G23: 0 | H23: =4896395+303032 -> 5199427 | I23: 0 | K23: 1.0654 | O23: 5199427 | Q23: 0
C24: ='B1.1 Rate Class And RTSR Rates'!D24 -> General Service 50 to 999 kW | E24: ='B1.1 Rate Class And RTSR Rates'!F24 -> kW | G24: 0 | H24: =5829296+2042236 -> 7871532 | I24: 19966.7 | K24: 1.0654 | M24: 0.5403412801 | O24: 7871532 | Q24: 19966.7
C25: ='B1.1 Rate Class And RTSR Rates'!D25 -> Unmetered Scattered Load | E25: ='B1.1 Rate Class And RTSR Rates'!F25 -> kWh | G25: 0 | H25: 7212 | I25: 0 | K25: 1.0654 | O25: 7212 | Q25: 0
C26: ='B1.1 Rate Class And RTSR Rates'!D26 -> Sentinel Lighting | E26: ='B1.1 Rate Class And RTSR Rates'!F26 -> kW | G26: 0 | H26: 27861 | I26: 65.7 | K26: 1.0654 | M26: 0.58122797 | O26: 27861 | Q26: 65.7
C27: ='B1.1 Rate Class And RTSR Rates'!D27 -> Street Lighting | E27: ='B1.1 Rate Class And RTSR Rates'!F27 -> kW | G27: 0 | H27: 296713 | I27: 780 | K27: 1.0654 | M27: 0.5213833361 | O27: 296713 | Q27: 780
C28: ='B1.1 Rate Class And RTSR Rates'!D28 -> Rate Class 7 | E28: ='B1.1 Rate Class And RTSR Rates'!F28 -> NA | G28: 0 | H28: 0 | I28: 0 | K28: 0 | M28: =IF(E28="kW",IF(I28<>0,H28/(I28*30.4*24),""),"") ->  | O28: 0 | Q28: 0
C29: ='B1.1 Rate Class And RTSR Rates'!D29 -> Rate Class 8 | E29: ='B1.1 Rate Class And RTSR Rates'!F29 -> NA | G29: 0 | H29: 0 | I29: 0 | K29: 0 | O29: 0 | Q29: 0
C30: ='B1.1 Rate Class And RTSR Rates'!D30 -> Rate Class 9 | E30: ='B1.1 Rate Class And RTSR Rates'!F30 -> NA | G30: 0 | H30: 0 | I30: 0 | K30: 0 | O30: 0 | Q30: 0
C31: ='B1.1 Rate Class And RTSR Rates'!D31 -> Rate Class 10 | E31: ='B1.1 Rate Class And RTSR Rates'!F31 -> NA | G31: 0 | H31: 0 | I31: 0 | K31: 0 | O31: 0 | Q31: 0
C32: ='B1.1 Rate Class And RTSR Rates'!D32 -> Rate Class 11 | E32: ='B1.1 Rate Class And RTSR Rates'!F32 -> NA | G32: 0 | H32: 0 | I32: 0 | K32: 0 | O32: 0 | Q32: 0
C33: ='B1.1 Rate Class And RTSR Rates'!D33 -> Rate Class 12 | E33: ='B1.1 Rate Class And RTSR Rates'!F33 -> NA | G33: 0 | H33: 0 | I33: 0 | K33: 0 | O33: 0 | Q33: 0
C34: ='B1.1 Rate Class And RTSR Rates'!D34 -> Rate Class 13 | E34: ='B1.1 Rate Class And RTSR Rates'!F34 -> NA | G34: 0 | H34: 0 | I34: 0 | K34: 0 | O34: 0 | Q34: 0
C35: ='B1.1 Rate Class And RTSR Rates'!D35 -> Rate Class 14 | E35: ='B1.1 Rate Class And RTSR Rates'!F35 -> NA | G35: 0 | H35: 0 | I35: 0 | K35: 0 | O35: 0 | Q35: 0
C36: ='B1.1 Rate Class And RTSR Rates'!D36 -> Rate Class 15 | E36: ='B1.1 Rate Class And RTSR Rates'!F36 -> NA | G36: 0 | H36: 0 | I36: 0 | K36: 0 | O36: 0 | Q36: 0
C37: ='B1.1 Rate Class And RTSR Rates'!D37 -> Rate Class 16 | E37: ='B1.1 Rate Class And RTSR Rates'!F37 -> NA | G37: 0 | H37: 0 | I37: 0 | K37: 0 | O37: 0 | Q37: 0
C38: ='B1.1 Rate Class And RTSR Rates'!D38 -> Rate Class 17 | E38: ='B1.1 Rate Class And RTSR Rates'!F38 -> NA | G38: 0 | H38: 0 | I38: 0 | K38: 0 | O38: 0 | Q38: 0
C39: ='B1.1 Rate Class And RTSR Rates'!D39 -> Rate Class 18 | E39: ='B1.1 Rate Class And RTSR Rates'!F39 -> NA | G39: 0 | H39: 0 | I39: 0 | K39: 0 | O39: 0 | Q39: 0
C40: ='B1.1 Rate Class And RTSR Rates'!D40 -> Rate Class 19 | E40: ='B1.1 Rate Class And RTSR Rates'!F40 -> NA | G40: 0 | H40: 0 | I40: 0 | K40: 0 | O40: 0 | Q40: 0
C41: ='B1.1 Rate Class And RTSR Rates'!D41 -> Rate Class 20 | E41: ='B1.1 Rate Class And RTSR Rates'!F41 -> NA | G41: 0 | H41: 0 | I41: 0 | K41: 0 | O41: 0 | Q41: 0
C42: ='B1.1 Rate Class And RTSR Rates'!D42 -> Rate Class 21 | E42: ='B1.1 Rate Class And RTSR Rates'!F42 -> NA | G42: 0 | H42: 0 | I42: 0 | K42: 0 | O42: 0 | Q42: 0
C43: ='B1.1 Rate Class And RTSR Rates'!D43 -> Rate Class 22 | E43: ='B1.1 Rate Class And RTSR Rates'!F43 -> NA | G43: 0 | H43: 0 | I43: 0 | K43: 0 | O43: 0 | Q43: 0
C44: ='B1.1 Rate Class And RTSR Rates'!D44 -> Rate Class 23 | E44: ='B1.1 Rate Class And RTSR Rates'!F44 -> NA | G44: 0 | H44: 0 | I44: 0 | K44: 0 | O44: 0 | Q44: 0
C45: ='B1.1 Rate Class And RTSR Rates'!D45 -> Rate Class 24 | E45: ='B1.1 Rate Class And RTSR Rates'!F45 -> NA | G45: 0 | H45: 0 | I45: 0 | K45: 0 | O45: 0 | Q45: 0
C46: ='B1.1 Rate Class And RTSR Rates'!D46 -> Rate Class 25 | E46: ='B1.1 Rate Class And RTSR Rates'!F46 -> NA | G46: 0 | H46: 0 | I46: 0 | K46: 0 | O46: 0 | Q46: 0
C48: Total | G48: =SUM(G22:G46) -> 0 | H48: =SUM(H22:H46) -> 28674697 | I48: =SUM(I22:I46) -> 20812.4 | O48: =SUM(O22:O46) -> 28674697 | Q48: =SUM(Q22:Q46) -> 20812.4

Sheet B1.3 UTR's and Sub-Transmission
C2: ='A1.1 LDC Information'!C2 -> Name of LDC: Chapleau Public Utilities Corporation
C3: ='A1.1 LDC Information'!C3 -> File Number: EB-2010-0073
C4: ='A1.1 LDC Information'!C4 -> Version : 1.0
C10: ='Z1.0 OEB Control Sheet'!C6 -> Uniform Transmission and Hydro One Sub-Transmission Rates
C17: Uniform Transmission Rates
G18: Effective January 1, 2009 | I18: Effective July 1, 2009 | K18: Effective January 1, 2010 | M18: Effective January 1, 2011
C20: Rate Description | E20: Vol Metric | G20: Rate | I20: Rate | K20: Rate | M20: Rate
C22: Network Service Rate | E22: kW | G22: 2.57 | I22: 2.66 | K22: 2.97 | M22: 2.97
C24: Line Connection Service Rate | E24: kW | G24: 0.7 | I24: 0.7 | K24: 0.73 | M24: 0.73
C26: Transformation Connection Service Rate | E26: kW | G26: 1.62 | I26: 1.57 | K26: 1.71 | M26: 1.71
C29: Hydro One Sub-Transmission Rates
G30: Effective May 1, 2008 | I30: Effective May 1, 2009 | K30: Effective May 1, 2010 | M30: Effective May 1, 2011
C32: Rate Description | E32: Vol Metric | G32: Rate | I32: Rate | K32: Rate | M32: Rate
C34: Network Service Rate | E34: kW | G34: 2.01 | I34: 2.24 | K34: 2.65 | M34: 2.65
C36: Line Connection Service Rate | E36: kW | G36: 0.5 | I36: 0.6 | K36: 0.64 | M36: 0.64
C38: Transformation Connection Service Rate | E38: kW | G38: 1.38 | I38: 1.39 | K38: 1.5 | M38: 1.5
C40: Both Line and Transformation Connection Service Rate | E40: kW | G40: 1.88 | I40: 1.99 | K40: 2.14 | M40: 2.14
C43: Hydro One Sub-Transmission Rate Rider 6A
G44: Effective May 1, 2008 | I44: Effective May 1, 2009 | K44: Effective May 1, 2010 | M44: Effective May 1, 2011
C46: Rate Description | E46: Vol Metric | G46: Rate | I46: Rate | K46: Rate | M46: Rate
C48: RSVA Transmission network – 4714 – which affects 1584 | E48: kW | G48: 0 | I48: 0 | K48: 0.047 | M48: 0.047
C50: RSVA Transmission connection – 4716 – which affects 1586 | E50: kW | G50: 0 | I50: 0 | K50: -0.025 | M50: -0.025
C52: RSVA LV – 4750 – which affects 1550 | E52: kW | G52: 0 | I52: 0 | K52: 0.058 | M52: 0.058
C54: RARA 1 – 2252 – which affects 1590 | E54: kW | G54: 0 | I54: 0 | K54: -0.075 | M54: -0.075
C56: Hydro One Sub-Transmission Rate Rider 6A | E56: kW | G56: =SUM(G48:G54) -> 0 | I56: =SUM(I48:I54) -> 0 | K56: =SUM(K48:K54) -> 0.005 | M56: =SUM(M48:M54) -> 0.005

Sheet C1.1 Historical Wholesale
C2: ='A1.1 LDC Information'!C2 -> Name of LDC: Chapleau Public Utilities Corporation
C3: ='A1.1 LDC Information'!C3 -> File Number: EB-2010-0073
C4: ='A1.1 LDC Information'!C4 -> Version : 1.0
C10: ='Z1.0 OEB Control Sheet'!C7 -> 2009 Historical Wholesale Transmission
C18: IESO
E19: Network | I19: Line Connection | M19: Transformation Connection | Q19: Total Line
C20: Month | E20: Units Billed | F20: Rate | G20: Amount | I20: Units Billed | J20: Rate | K20: Amount | M20: Units Billed | N20: Rate | O20: Amount | Q20: Amount
C22: January | E22: 4447 | F22: =IF(E22<>0,G22/E22,0) -> 2.570047223 | G22: 11429 | I22: 4719 | J22: =IF(I22<>0,K22/I22,0) -> 0.7 | K22: 3303.3 | N22: =IF(M22<>0,O22/M22,0) -> 0 | Q22: =K22+O22 -> 3303.3
C23: February | E23: 3964 | F23: =IF(E23<>0,G23/E23,0) -> 2.57 | G23: 10187.48 | I23: 4187 | J23: =IF(I23<>0,K23/I23,0) -> 0.7 | K23: 2930.9 | N23: =IF(M23<>0,O23/M23,0) -> 0 | Q23: =K23+O23 -> 2930.9
C24: March | E24: 3609 | F24: 2.57 | G24: 9275.13 | I24: 4142 | J24: 0.7 | K24: 2899.4 | N24: 0 | Q24: 2899.4
C25: April | E25: 2782 | F25: 2.57 | G25: 7149.74 | I25: 2994 | J25: 0.7 | K25: 2095.8 | N25: 0 | Q25: 2095.8
C26: May | E26: 1923 | F26: 2.57 | G26: 4942.11 | I26: 2528 | J26: 0.7 | K26: 1769.6 | N26: 0 | Q26: 1769.6
C27: June | E27: 1884 | F27: 2.57 | G27: 4841.88 | I27: 2216 | J27: 0.7 | K27: 1551.2 | N27: 0 | Q27: 1551.2
C28: July | E28: 1691 | F28: 2.66 | G28: 4498.06 | I28: 1835 | J28: 0.7 | K28: 1284.5 | N28: 0 | Q28: 1284.5
C29: August | E29: 1734 | F29: 2.66 | G29: 4612.44 | I29: 1927 | J29: 0.7 | K29: 1348.9 | N29: 0 | Q29: 1348.9
C30: September | E30: 1910 | F30: 2.66 | G30: 5080.6 | I30: 2266 | J30: 0.7 | K30: 1586.2 | N30: 0 | Q30: 1586.2
C31: October | E31: 2556 | F31: 2.66 | G31: 6798.96 | I31: 2727 | J31: 0.7 | K31: 1908.9 | N31: 0 | Q31: 1908.9
C32: November | E32: 2812 | F32: 2.66 | G32: 7479.92 | I32: 2910 | J32: 0.7 | K32: 2037 | N32: 0 | Q32: 2037
C33: December | E33: 3692 | F33: 2.66 | G33: 9820.72 | I33: 3923 | J33: 0.7 | K33: 2746.1 | N33: 0 | Q33: 2746.1
C35: Total | E35: =SUM(E22:E33) -> 33004 | F35: =IF(E35<>0,G35/E35,0) -> 2.609260696 | G35: =SUM(G22:G33) -> 86116.04 | I35: =SUM(I22:I33) -> 36374 | J35: =IF(I35<>0,K35/I35,0) -> 0.7 | K35: =SUM(K22:K33) -> 25461.8 | M35: =SUM(M22:M33) -> 0 | N35: =IF(M35<>0,O35/M35,0) -> 0 | O35: =SUM(O22:O33) -> 0 | Q35: =SUM(Q22:Q33) -> 25461.8
C37: Hydro One
E38: Network | I38: Line Connection | M38: Line Transformation | Q38: Total Line
C39: Month | E39: Units Billed | F39: Rate | G39: Amount | I39: Units Billed | J39: Rate | K39: Amount | M39: Units Billed | N39: Rate | O39: Amount | Q39: Amount
C41: January | E41: 2531 | F41: =IF(E41<>0,G41/E41,0) -> 2.01 | G41: 5087.31 | I41: 2531 | J41: =IF(I41<>0,K41/I41,0) -> 0.5 | K41: 1265.5 | N41: =IF(M41<>0,O41/M41,0) -> 0 | Q41: =K41+O41 -> 1265.5
C42: February | E42: 2826 | F42: =IF(E42<>0,G42/E42,0) -> 2.01 | G42: 5680.26 | I42: 2826 | J42: =IF(I42<>0,K42/I42,0) -> 0.5 | K42: 1413 | N42: =IF(M42<>0,O42/M42,0) -> 0 | Q42: =K42+O42 -> 1413
C43: March | E43: 2564 | F43: 2.01 | G43: 5153.64 | I43: 2564 | J43: 0.5 | K43: 1282 | N43: 0 | Q43: 1282
C44: April | E44: 2512 | F44: 2.01 | G44: 5049.12 | I44: 2512 | J44: 0.5 | K44: 1256 | N44: 0 | Q44: 1256
C45: May | E45: 1839 | F45: 2.01 | G45: 3696.39 | I45: 1839 | J45: 0.5 | K45: 919.5 | N45: 0 | Q45: 919.5
C46: June | E46: 1424 | F46: 2.01 | G46: 2862.24 | I46: 1424 | J46: 0.5 | K46: 712 | N46: 0 | Q46: 712
C47: July | E47: 1268 | F47: 2.216206625 | G47: 2810.15 | I47: 1268 | J47: 0.5896608833 | K47: 747.69 | N47: 0 | Q47: 747.69
C48: August | E48: 963 | F48: 2.24 | G48: 2157.12 | I48: 963 | J48: 0.6 | K48: 577.8 | N48: 0 | Q48: 577.8
C49: September | E49: 1086 | F49: 2.24 | G49: 2432.64 | I49: 1086 | J49: 0.6 | K49: 651.6 | N49: 0 | Q49: 651.6
C50: October | E50: 1272 | F50: 2.24 | G50: 2849.28 | I50: 1272 | J50: 0.6 | K50: 763.2 | N50: 0 | Q50: 763.2
C51: November | E51: 1685 | F51: 2.24 | G51: 3774.4 | I51: 1685 | J51: 0.6 | K51: 1011 | N51: 0 | Q51: 1011
C52: December | E52: 1728 | F52: 2.24 | G52: 3870.72 | I52: 1728 | J52: 0.6 | K52: 1036.8 | N52: 0 | Q52: 1036.8
C54: Total | E54: =SUM(E41:E52) -> 21698 | F54: =IF(E54<>0,G54/E54,0) -> 2.093431192 | G54: =SUM(G41:G52) -> 45423.27 | I54: =SUM(I41:I52) -> 21698 | J54: =IF(I54<>0,K54/I54,0) -> 0.5362747719 | K54: =SUM(K41:K52) -> 11636.09 | M54: =SUM(M41:M52) -> 0 | N54: =IF(M54<>0,O54/M54,0) -> 0 | O54: =SUM(O41:O52) -> 0 | Q54: =SUM(Q41:Q52) -> 11636.09
C56: Total
E57: Network | I57: Line Connection | M57: Line Transformation | Q57: Total Line
C58: Month | E58: Units Billed | F58: Rate | G58: Amount | I58: Units Billed | J58: Rate | K58: Amount | M58: Units Billed | N58: Rate | O58: Amount | Q58: Amount
C60: January | E60: =E22+E41 -> 6978 | F60: =IF(E60<>0,G60/E60,0) -> 2.366911723 | G60: =G22+G41 -> 16516.31 | I60: =I22+I41 -> 7250 | J60: =IF(I60<>0,K60/I60,0) -> 0.6301793103 | K60: =K22+K41 -> 4568.8 | M60: =M22+M41 -> 0 | N60: =IF(M60<>0,O60/M60,0) -> 0 | O60: =O22+O41 -> 0 | Q60: =K60+O60 -> 4568.8
C61: February | E61: =E23+E42 -> 6790 | F61: =IF(E61<>0,G61/E61,0) -> 2.336927835 | G61: 15867.74 | I61: 7013 | J61: =IF(I61<>0,K61/I61,0) -> 0.6194068159 | K61: 4343.9 | M61: 0 | N61: =IF(M61<>0,O61/M61,0) -> 0 | O61: 0 | Q61: =K61+O61 -> 4343.9
C62: March | E62: 6173 | F62: 2.337399968 | G62: 14428.77 | I62: 6706 | J62: 0.6235311661 | K62: 4181.4 | M62: 0 | N62: 0 | O62: 0 | Q62: 4181.4
C63: April | E63: 5294 | F63: 2.304280317 | G63: 12198.86 | I63: 5506 | J63: 0.6087540865 | K63: 3351.8 | M63: 0 | N63: 0 | O63: 0 | Q63: 3351.8
C64: May | E64: 3762 | F64: 2.296251994 | G64: 8638.5 | I64: 4367 | J64: 0.6157774216 | K64: 2689.1 | M64: 0 | N64: 0 | O64: 0 | Q64: 2689.1
C65: June | E65: 3308 | F65: 2.328935913 | G65: 7704.12 | I65: 3640 | J65: 0.6217582418 | K65: 2263.2 | M65: 0 | N65: 0 | O65: 0 | Q65: 2263.2
C66: July | E66: 2959 | F66: 2.469824265 | G66: 7308.21 | I66: 3103 | J66: 0.6549113761 | K66: 2032.19 | M66: 0 | N66: 0 | O66: 0 | Q66: 2032.19
C67: August | E67: 2697 | F67: 2.51003337 | G67: 6769.56 | I67: 2890 | J67: 0.6666782007 | K67: 1926.7 | M67: 0 | N67: 0 | O67: 0 | Q67: 1926.7
C68: September | E68: 2996 | F68: 2.507757009 | G68: 7513.24 | I68: 3352 | J68: 0.667601432 | K68: 2237.8 | M68: 0 | N68: 0 | O68: 0 | Q68: 2237.8
C69: October | E69: 3828 | F69: 2.520438871 | G69: 9648.24 | I69: 3999 | J69: 0.668192048 | K69: 2672.1 | M69: 0 | N69: 0 | O69: 0 | Q69: 2672.1
C70: November | E70: 4497 | F70: 2.502628419 | G70: 11254.32 | I70: 4595 | J70: 0.6633297062 | K70: 3048 | M70: 0 | N70: 0 | O70: 0 | Q70: 3048
C71: December | E71: 5420 | F71: 2.526095941 | G71: 13691.44 | I71: 5651 | J71: 0.6694213414 | K71: 3782.9 | M71: 0 | N71: 0 | O71: 0 | Q71: 3782.9
C73: Total | E73: =SUM(E60:E71) -> 54702 | F73: =IF(E73<>0,G73/E73,0) -> 2.404652664 | G73: =SUM(G60:G71) -> 131539.31 | I73: =SUM(I60:I71) -> 58072 | J73: =IF(I73<>0,K73/I73,0) -> 0.638825768 | K73: =SUM(K60:K71) -> 37097.89 | M73: =SUM(M60:M71) -> 0 | N73: =IF(M73<>0,O73/M73,0) -> 0 | O73: =SUM(O60:O71) -> 0 | Q73: =SUM(Q60:Q71) -> 37097.89

Sheet C1.2 Current Wholesale
C2: ='A1.1 LDC Information'!C2 -> Name of LDC: Chapleau Public Utilities Corporation
C3: ='A1.1 LDC Information'!C3 -> File Number: EB-2010-0073
C4: ='A1.1 LDC Information'!C4 -> Version : 1.0
C10: ='Z1.0 OEB Control Sheet'!C8 -> Current Wholesale Transmission
C18: IESO
E19: Network | I19: Line Connection | M19: Transformation Connection | Q19: Total Line
C20: Month | E20: Units Billed | F20: Rate | G20: Amount | I20: Units Billed | J20: Rate | K20: Amount | M20: Units Billed | N20: Rate | O20: Amount | Q20: Amount
C22: January | E22: ='C1.1 Historical Wholesale'!E22 -> 4447 | F22: ='B1.3 UTR''s and Sub-Transmission'!K22 -> 2.97 | G22: =E22*F22 -> 13207.59 | I22: ='C1.1 Historical Wholesale'!I22 -> 4719 | J22: ='B1.3 UTR''s and Sub-Transmission'!K24 -> 0.73 | K22: =I22*J22 -> 3444.87 | M22: ='C1.1 Historical Wholesale'!M22 -> 0 | N22: ='B1.3 UTR''s and Sub-Transmission'!K26 -> 1.71 | O22: =M22*N22 -> 0 | Q22: =K22+O22 -> 3444.87
C23: February | E23: ='C1.1 Historical Wholesale'!E23 -> 3964 | F23: =F22 -> 2.97 | G23: =E23*F23 -> 11773.08 | I23: ='C1.1 Historical Wholesale'!I23 -> 4187 | J23: =J22 -> 0.73 | K23: =I23*J23 -> 3056.51 | M23: ='C1.1 Historical Wholesale'!M23 -> 0 | N23: =N22 -> 1.71 | O23: =M23*N23 -> 0 | Q23: 3056.51
C24: March | E24: ='C1.1 Historical Wholesale'!E24 -> 3609 | F24: =F23 -> 2.97 | G24: 10718.73 | I24: ='C1.1 Historical Wholesale'!I24 -> 4142 | J24: =J23 -> 0.73 | K24: 3023.66 | M24: ='C1.1 Historical Wholesale'!M24 -> 0 | N24: =N23 -> 1.71 | O24: 0 | Q24: 3023.66
C25: April | E25: ='C1.1 Historical Wholesale'!E25 -> 2782 | F25: 2.97 | G25: 8262.54 | I25: ='C1.1 Historical Wholesale'!I25 -> 2994 | J25: 0.73 | K25: 2185.62 | M25: ='C1.1 Historical Wholesale'!M25 -> 0 | N25: 1.71 | O25: 0 | Q25: 2185.62
C26: May | E26: ='C1.1 Historical Wholesale'!E26 -> 1923 | F26: 2.97 | G26: 5711.31 | I26: ='C1.1 Historical Wholesale'!I26 -> 2528 | J26: 0.73 | K26: 1845.44 | M26: ='C1.1 Historical Wholesale'!M26 -> 0 | N26: 1.71 | O26: 0 | Q26: 1845.44
C27: June | E27: ='C1.1 Historical Wholesale'!E27 -> 1884 | F27: 2.97 | G27: 5595.48 | I27: ='C1.1 Historical Wholesale'!I27 -> 2216 | J27: 0.73 | K27: 1617.68 | M27: ='C1.1 Historical Wholesale'!M27 -> 0 | N27: 1.71 | O27: 0 | Q27: 1617.68
C28: July | E28: ='C1.1 Historical Wholesale'!E28 -> 1691 | F28: 2.97 | G28: 5022.27 | I28: ='C1.1 Historical Wholesale'!I28 -> 1835 | J28: 0.73 | K28: 1339.55 | M28: ='C1.1 Historical Wholesale'!M28 -> 0 | N28: 1.71 | O28: 0 | Q28: 1339.55
C29: August | E29: ='C1.1 Historical Wholesale'!E29 -> 1734 | F29: 2.97 | G29: 5149.98 | I29: ='C1.1 Historical Wholesale'!I29 -> 1927 | J29: 0.73 | K29: 1406.71 | M29: ='C1.1 Historical Wholesale'!M29 -> 0 | N29: 1.71 | O29: 0 | Q29: 1406.71
C30: September | E30: ='C1.1 Historical Wholesale'!E30 -> 1910 | F30: 2.97 | G30: 5672.7 | I30: ='C1.1 Historical Wholesale'!I30 -> 2266 | J30: 0.73 | K30: 1654.18 | M30: ='C1.1 Historical Wholesale'!M30 -> 0 | N30: 1.71 | O30: 0 | Q30: 1654.18
C31: October | E31: ='C1.1 Historical Wholesale'!E31 -> 2556 | F31: 2.97 | G31: 7591.32 | I31: ='C1.1 Historical Wholesale'!I31 -> 2727 | J31: 0.73 | K31: 1990.71 | M31: ='C1.1 Historical Wholesale'!M31 -> 0 | N31: 1.71 | O31: 0 | Q31: 1990.71
C32: November | E32: ='C1.1 Historical Wholesale'!E32 -> 2812 | F32: 2.97 | G32: 8351.64 | I32: ='C1.1 Historical Wholesale'!I32 -> 2910 | J32: 0.73 | K32: 2124.3 | M32: ='C1.1 Historical Wholesale'!M32 -> 0 | N32: 1.71 | O32: 0 | Q32: 2124.3
C33: December | E33: ='C1.1 Historical Wholesale'!E33 -> 3692 | F33: 2.97 | G33: 10965.24 | I33: ='C1.1 Historical Wholesale'!I33 -> 3923 | J33: 0.73 | K33: 2863.79 | M33: ='C1.1 Historical Wholesale'!M33 -> 0 | N33: 1.71 | O33: 0 | Q33: 2863.79
C35: Total | E35: =SUM(E22:E33) -> 33004 | F35: =IF(E35<>0,G35/E35,0) -> 2.97 | G35: =SUM(G22:G33) -> 98021.88 | I35: =SUM(I22:I33) -> 36374 | J35: =IF(I35<>0,K35/I35,0) -> 0.73 | K35: =SUM(K22:K33) -> 26553.02 | M35: =SUM(M22:M33) -> 0 | N35: =IF(M35<>0,O35/M35,0) -> 0 | O35: =SUM(O22:O33) -> 0 | Q35: =SUM(Q22:Q33) -> 26553.02
C37: Hydro One
E38: Network | I38: Line Connection | M38: Line Transformation | Q38: Total Line
C39: Month | E39: Units Billed | F39: Rate | G39: Amount | I39: Units Billed | J39: Rate | K39: Amount | M39: Units Billed | N39: Rate | O39: Amount | Q39: Amount
E40: Includes Hydro One Rate Rider B1.3 UTR's and Sub-Transmission Cell K48 | I40: Includes Hydro One Rate Rider B1.3 UTR's and Sub-Transmission Cell K50
C41: January | E41: ='C1.1 Historical Wholesale'!E41 -> 2531 | F41: ='B1.3 UTR''s and Sub-Transmission'!K34+'B1.3 UTR''s and Sub-Transmission'!K48 -> 2.697 | G41: =E41*F41 -> 6826.107 | I41: ='C1.1 Historical Wholesale'!I41 -> 2531 | J41: ='B1.3 UTR''s and Sub-Transmission'!K36+'B1.3 UTR''s and Sub-Transmission'!K50 -> 0.615 | K41: =I41*J41 -> 1556.565 | M41: ='C1.1 Historical Wholesale'!M41 -> 0 | N41: ='B1.3 UTR''s and Sub-Transmission'!K38 -> 1.5 | O41: =M41*N41 -> 0 | Q41: =K41+O41 -> 1556.565
C42: February | E42: ='C1.1 Historical Wholesale'!E42 -> 2826 | F42: =F41 -> 2.697 | G42: =E42*F42 -> 7621.722 | I42: ='C1.1 Historical Wholesale'!I42 -> 2826 | J42: =J41 -> 0.615 | K42: =I42*J42 -> 1737.99 | M42: ='C1.1 Historical Wholesale'!M42 -> 0 | N42: =N41 -> 1.5 | O42: =M42*N42 -> 0 | Q42: 1737.99
C43: March | E43: ='C1.1 Historical Wholesale'!E43 -> 2564 | F43: =F42 -> 2.697 | G43: 6915.108 | I43: ='C1.1 Historical Wholesale'!I43 -> 2564 | J43: =J42 -> 0.615 | K43: 1576.86 | M43: ='C1.1 Historical Wholesale'!M43 -> 0 | N43: =N42 -> 1.5 | O43: 0 | Q43: 1576.86
C44: April | E44: ='C1.1 Historical Wholesale'!E44 -> 2512 | F44: 2.697 | G44: 6774.864 | I44: ='C1.1 Historical Wholesale'!I44 -> 2512 | J44: 0.615 | K44: 1544.88 | M44: ='C1.1 Historical Wholesale'!M44 -> 0 | N44: 1.5 | O44: 0 | Q44: 1544.88
C45: May | E45: ='C1.1 Historical Wholesale'!E45 -> 1839 | F45: 2.697 | G45: 4959.783 | I45: ='C1.1 Historical Wholesale'!I45 -> 1839 | J45: 0.615 | K45: 1130.985 | M45: ='C1.1 Historical Wholesale'!M45 -> 0 | N45: 1.5 | O45: 0 | Q45: 1130.985
C46: June | E46: ='C1.1 Historical Wholesale'!E46 -> 1424 | F46: 2.697 | G46: 3840.528 | I46: ='C1.1 Historical Wholesale'!I46 -> 1424 | J46: 0.615 | K46: 875.76 | M46: ='C1.1 Historical Wholesale'!M46 -> 0 | N46: 1.5 | O46: 0 | Q46: 875.76
C47: July | E47: ='C1.1 Historical Wholesale'!E47 -> 1268 | F47: 2.697 | G47: 3419.796 | I47: ='C1.1 Historical Wholesale'!I47 -> 1268 | J47: 0.615 | K47: 779.82 | M47: ='C1.1 Historical Wholesale'!M47 -> 0 | N47: 1.5 | O47: 0 | Q47: 779.82
C48: August | E48: ='C1.1 Historical Wholesale'!E48 -> 963 | F48: 2.697 | G48: 2597.211 | I48: ='C1.1 Historical Wholesale'!I48 -> 963 | J48: 0.615 | K48: 592.245 | M48: ='C1.1 Historical Wholesale'!M48 -> 0 | N48: 1.5 | O48: 0 | Q48: 592.245
C49: September | E49: ='C1.1 Historical Wholesale'!E49 -> 1086 | F49: 2.697 | G49: 2928.942 | I49: ='C1.1 Historical Wholesale'!I49 -> 1086 | J49: 0.615 | K49: 667.89 | M49: ='C1.1 Historical Wholesale'!M49 -> 0 | N49: 1.5 | O49: 0 | Q49: 667.89
C50: October | E50: ='C1.1 Historical Wholesale'!E50 -> 1272 | F50: 2.697 | G50: 3430.584 | I50: ='C1.1 Historical Wholesale'!I50 -> 1272 | J50: 0.615 | K50: 782.28 | M50: ='C1.1 Historical Wholesale'!M50 -> 0 | N50: 1.5 | O50: 0 | Q50: 782.28
C51: November | E51: ='C1.1 Historical Wholesale'!E51 -> 1685 | F51: 2.697 | G51: 4544.445 | I51: ='C1.1 Historical Wholesale'!I51 -> 1685 | J51: 0.615 | K51: 1036.275 | M51: ='C1.1 Historical Wholesale'!M51 -> 0 | N51: 1.5 | O51: 0 | Q51: 1036.275
C52: December | E52: ='C1.1 Historical Wholesale'!E52 -> 1728 | F52: 2.697 | G52: =E52*F52 -> 4660.416 | I52: ='C1.1 Historical Wholesale'!I52 -> 1728 | J52: 0.615 | K52: 1062.72 | M52: ='C1.1 Historical Wholesale'!M52 -> 0 | N52: 1.5 | O52: 0 | Q52: 1062.72
C54: Total | E54: =SUM(E41:E52) -> 21698 | F54: =IF(E54<>0,G54/E54,0) -> 2.697 | G54: =SUM(G41:G52) -> 58519.506 | I54: =SUM(I41:I52) -> 21698 | J54: =IF(I54<>0,K54/I54,0) -> 0.615 | K54: =SUM(K41:K52) -> 13344.27 | M54: =SUM(M41:M52) -> 0 | N54: =IF(M54<>0,O54/M54,0) -> 0 | O54: =SUM(O41:O52) -> 0 | Q54: =SUM(Q41:Q52) -> 13344.27
C56: Total
E57: Network | I57: Line Connection | M57: Line Transformation | Q57: Total Line
C58: Month | E58: Units Billed | F58: Rate | G58: Amount | I58: Units Billed | J58: Rate | K58: Amount | M58: Units Billed | N58: Rate | O58: Amount | Q58: Amount
C60: January | E60: =E22+E41 -> 6978 | F60: =IF(E60<>0,G60/E60,0) -> 2.870979794 | G60: =G22+G41 -> 20033.697 | I60: =I22+I41 -> 7250 | J60: =IF(I60<>0,K60/I60,0) -> 0.6898531034 | K60: =K22+K41 -> 5001.435 | M60: =M22+M41 -> 0 | N60: =IF(M60<>0,O60/M60,0) -> 0 | O60: =O22+O41 -> 0 | Q60: =K60+O60 -> 5001.435
C61: February | E61: 6790 | F61: 2.85637732 | G61: 19394.802 | I61: 7013 | J61: 0.6836589192 | K61: 4794.5 | M61: 0 | N61: 0 | O61: 0 | Q61: 4794.5
C62: March | E62: 6173 | F62: 2.856607484 | G62: 17633.838 | I62: 6706 | J62: 0.6860304205 | K62: 4600.52 | M62: 0 | N62: 0 | O62: 0 | Q62: 4600.52
C63: April | E63: 5294 | F63: 2.840461655 | G63: 15037.404 | I63: 5506 | J63: 0.6775335997 | K63: 3730.5 | M63: 0 | N63: 0 | O63: 0 | Q63: 3730.5
C64: May | E64: 3762 | F64: 2.836547847 | G64: 10671.093 | I64: 4367 | J64: 0.6815720174 | K64: 2976.425 | M64: 0 | N64: 0 | O64: 0 | Q64: 2976.425
C65: June | E65: 3308 | F65: 2.852481258 | G65: 9436.008 | I65: 3640 | J65: 0.685010989 | K65: 2493.44 | M65: 0 | N65: 0 | O65: 0 | Q65: 2493.44
C66: July | E66: 2959 | F66: 2.85301318 | G66: 8442.066 | I66: 3103 | J66: 0.6830067676 | K66: 2119.37 | M66: 0 | N66: 0 | O66: 0 | Q66: 2119.37
C67: August | E67: 2697 | F67: 2.872521691 | G67: 7747.191 | I67: 2890 | J67: 0.6916799308 | K67: 1998.955 | M67: 0 | N67: 0 | O67: 0 | Q67: 1998.955
C68: September | E68: 2996 | F68: 2.871042056 | G68: 8601.642 | I68: 3352 | J68: 0.6927416468 | K68: 2322.07 | M68: 0 | N68: 0 | O68: 0 | Q68: 2322.07
C69: October | E69: 3828 | F69: 2.879285266 | G69: 11021.904 | I69: 3999 | J69: 0.6934208552 | K69: 2772.99 | M69: 0 | N69: 0 | O69: 0 | Q69: 2772.99
C70: November | E70: 4497 | F70: 2.867708472 | G70: 12896.085 | I70: 4595 | J70: 0.6878291621 | K70: 3160.575 | M70: 0 | N70: 0 | O70: 0 | Q70: 3160.575
C71: December | E71: 5420 | F71: 2.882962362 | G71: 15625.656 | I71: 5651 | J71: 0.6948345426 | K71: 3926.51 | M71: 0 | N71: 0 | O71: 0 | Q71: 3926.51
C73: Total | E73: =SUM(E60:E71) -> 54702 | F73: =IF(E73<>0,G73/E73,0) -> 2.861712296 | G73: =SUM(G60:G71) -> 156541.386 | I73: =SUM(I60:I71) -> 58072 | J73: =IF(I73<>0,K73/I73,0) -> 0.6870314437 | K73: =SUM(K60:K71) -> 39897.29 | M73: =SUM(M60:M71) -> 0 | N73: =IF(M73<>0,O73/M73,0) -> 0 | O73: =SUM(O60:O71) -> 0 | Q73: =SUM(Q60:Q71) -> 39897.29

Sheet C1.3 Forecast Wholesale
C2: ='A1.1 LDC Information'!C2 -> Name of LDC: Chapleau Public Utilities Corporation
C3: ='A1.1 LDC Information'!C3 -> File Number: EB-2010-0073
C4: ='A1.1 LDC Information'!C4 -> Version : 1.0
C10: ='Z1.0 OEB Control Sheet'!C9 -> Forecast Wholesale Transmission
C18: IESO
E19: Network | I19: Line Connection | M19: Transformation Connection | Q19: Total Line
C20: Month | E20: Units Billed | F20: Rate | G20: Amount | I20: Units Billed | J20: Rate | K20: Amount | M20: Units Billed | N20: Rate | O20: Amount | Q20: Amount
C22: January | E22: ='C1.1 Historical Wholesale'!E22 -> 4447 | F22: ='B1.3 UTR''s and Sub-Transmission'!M22 -> 2.97 | G22: =E22*F22 -> 13207.59 | I22: ='C1.1 Historical Wholesale'!I22 -> 4719 | J22: ='B1.3 UTR''s and Sub-Transmission'!M24 -> 0.73 | K22: =I22*J22 -> 3444.87 | M22: ='C1.1 Historical Wholesale'!M22 -> 0 | N22: ='B1.3 UTR''s and Sub-Transmission'!M26 -> 1.71 | O22: =M22*N22 -> 0 | Q22: =K22+O22 -> 3444.87
C23: February | E23: ='C1.1 Historical Wholesale'!E23 -> 3964 | F23: =F22 -> 2.97 | G23: 11773.08 | I23: ='C1.1 Historical Wholesale'!I23 -> 4187 | J23: =J22 -> 0.73 | K23: 3056.51 | M23: ='C1.1 Historical Wholesale'!M23 -> 0 | N23: =N22 -> 1.71 | O23: 0 | Q23: 3056.51
C24: March | E24: ='C1.1 Historical Wholesale'!E24 -> 3609 | F24: =F23 -> 2.97 | G24: 10718.73 | I24: ='C1.1 Historical Wholesale'!I24 -> 4142 | J24: =J23 -> 0.73 | K24: 3023.66 | M24: ='C1.1 Historical Wholesale'!M24 -> 0 | N24: =N23 -> 1.71 | O24: 0 | Q24: 3023.66
C25: April | E25: ='C1.1 Historical Wholesale'!E25 -> 2782 | F25: 2.97 | G25: 8262.54 | I25: ='C1.1 Historical Wholesale'!I25 -> 2994 | J25: 0.73 | K25: 2185.62 | M25: ='C1.1 Historical Wholesale'!M25 -> 0 | N25: 1.71 | O25: 0 | Q25: 2185.62
C26: May | E26: ='C1.1 Historical Wholesale'!E26 -> 1923 | F26: 2.97 | G26: 5711.31 | I26: ='C1.1 Historical Wholesale'!I26 -> 2528 | J26: 0.73 | K26: 1845.44 | M26: ='C1.1 Historical Wholesale'!M26 -> 0 | N26: 1.71 | O26: 0 | Q26: 1845.44
C27: June | E27: ='C1.1 Historical Wholesale'!E27 -> 1884 | F27: 2.97 | G27: 5595.48 | I27: ='C1.1 Historical Wholesale'!I27 -> 2216 | J27: 0.73 | K27: 1617.68 | M27: ='C1.1 Historical Wholesale'!M27 -> 0 | N27: 1.71 | O27: 0 | Q27: 1617.68
C28: July | E28: ='C1.1 Historical Wholesale'!E28 -> 1691 | F28: 2.97 | G28: 5022.27 | I28: ='C1.1 Historical Wholesale'!I28 -> 1835 | J28: 0.73 | K28: 1339.55 | M28: ='C1.1 Historical Wholesale'!M28 -> 0 | N28: 1.71 | O28: 0 | Q28: 1339.55
C29: August | E29: ='C1.1 Historical Wholesale'!E29 -> 1734 | F29: 2.97 | G29: 5149.98 | I29: ='C1.1 Historical Wholesale'!I29 -> 1927 | J29: 0.73 | K29: 1406.71 | M29: ='C1.1 Historical Wholesale'!M29 -> 0 | N29: 1.71 | O29: 0 | Q29: 1406.71
C30: September | E30: ='C1.1 Historical Wholesale'!E30 -> 1910 | F30: 2.97 | G30: 5672.7 | I30: ='C1.1 Historical Wholesale'!I30 -> 2266 | J30: 0.73 | K30: 1654.18 | M30: ='C1.1 Historical Wholesale'!M30 -> 0 | N30: 1.71 | O30: 0 | Q30: 1654.18
C31: October | E31: ='C1.1 Historical Wholesale'!E31 -> 2556 | F31: 2.97 | G31: 7591.32 | I31: ='C1.1 Historical Wholesale'!I31 -> 2727 | J31: 0.73 | K31: 1990.71 | M31: ='C1.1 Historical Wholesale'!M31 -> 0 | N31: 1.71 | O31: 0 | Q31: 1990.71
C32: November | E32: ='C1.1 Historical Wholesale'!E32 -> 2812 | F32: 2.97 | G32: 8351.64 | I32: ='C1.1 Historical Wholesale'!I32 -> 2910 | J32: 0.73 | K32: 2124.3 | M32: ='C1.1 Historical Wholesale'!M32 -> 0 | N32: 1.71 | O32: 0 | Q32: 2124.3
C33: December | E33: ='C1.1 Historical Wholesale'!E33 -> 3692 | F33: 2.97 | G33: 10965.24 | I33: ='C1.1 Historical Wholesale'!I33 -> 3923 | J33: 0.73 | K33: 2863.79 | M33: ='C1.1 Historical Wholesale'!M33 -> 0 | N33: 1.71 | O33: 0 | Q33: 2863.79
C35: Total | E35: =SUM(E22:E33) -> 33004 | F35: =IF(E35<>0,G35/E35,0) -> 2.97 | G35: =SUM(G22:G33) -> 98021.88 | I35: =SUM(I22:I33) -> 36374 | J35: =IF(I35<>0,K35/I35,0) -> 0.73 | K35: =SUM(K22:K33) -> 26553.02 | M35: =SUM(M22:M33) -> 0 | N35: =IF(M35<>0,O35/M35,0) -> 0 | O35: =SUM(O22:O33) -> 0 | Q35: =SUM(Q22:Q33) -> 26553.02
C37: Hydro One
E38: Network | I38: Line Connection | M38: Line Transformation | Q38: Total Line
C39: Month | E39: Units Billed | F39: Rate | G39: Amount | I39: Units Billed | J39: Rate | K39: Amount | M39: Units Billed | N39: Rate | O39: Amount | Q39: Amount
E40: Includes Hydro One Rate Rider B1.3 UTR's and Sub-Transmission Cell M48 | I40: Includes Hydro One Rate Rider B1.3 UTR's and Sub-Transmission Cell M50
C41: January | E41: ='C1.1 Historical Wholesale'!E41 -> 2531 | F41: ='B1.3 UTR''s and Sub-Transmission'!M34+'B1.3 UTR''s and Sub-Transmission'!M48 -> 2.697 | G41: =E41*F41 -> 6826.107 | I41: ='C1.1 Historical Wholesale'!I41 -> 2531 | J41: ='B1.3 UTR''s and Sub-Transmission'!M36+'B1.3 UTR''s and Sub-Transmission'!M50 -> 0.615 | K41: =I41*J41 -> 1556.565 | M41: ='C1.1 Historical Wholesale'!M41 -> 0 | N41: ='B1.3 UTR''s and Sub-Transmission'!M38 -> 1.5 | O41: =M41*N41 -> 0 | Q41: =K41+O41 -> 1556.565
C42: February | E42: ='C1.1 Historical Wholesale'!E42 -> 2826 | F42: =F41 -> 2.697 | G42: 7621.722 | I42: ='C1.1 Historical Wholesale'!I42 -> 2826 | J42: =J41 -> 0.615 | K42: 1737.99 | M42: ='C1.1 Historical Wholesale'!M42 -> 0 | N42: =N41 -> 1.5 | O42: 0 | Q42: 1737.99
C43: March | E43: ='C1.1 Historical Wholesale'!E43 -> 2564 | F43: =F42 -> 2.697 | G43: 6915.108 | I43: ='C1.1 Historical Wholesale'!I43 -> 2564 | J43: =J42 -> 0.615 | K43: 1576.86 | M43: ='C1.1 Historical Wholesale'!M43 -> 0 | N43: =N42 -> 1.5 | O43: 0 | Q43: 1576.86
C44: April | E44: ='C1.1 Historical Wholesale'!E44 -> 2512 | F44: 2.697 | G44: 6774.864 | I44: ='C1.1 Historical Wholesale'!I44 -> 2512 | J44: 0.615 | K44: 1544.88 | M44: ='C1.1 Historical Wholesale'!M44 -> 0 | N44: 1.5 | O44: 0 | Q44: 1544.88
C45: May | E45: ='C1.1 Historical Wholesale'!E45 -> 1839 | F45: 2.697 | G45: 4959.783 | I45: ='C1.1 Historical Wholesale'!I45 -> 1839 | J45: 0.615 | K45: 1130.985 | M45: ='C1.1 Historical Wholesale'!M45 -> 0 | N45: 1.5 | O45: 0 | Q45: 1130.985
C46: June | E46: ='C1.1 Historical Wholesale'!E46 -> 1424 | F46: 2.697 | G46: 3840.528 | I46: ='C1.1 Historical Wholesale'!I46 -> 1424 | J46: 0.615 | K46: 875.76 | M46: ='C1.1 Historical Wholesale'!M46 -> 0 | N46: 1.5 | O46: 0 | Q46: 875.76
C47: July | E47: ='C1.1 Historical Wholesale'!E47 -> 1268 | F47: 2.697 | G47: 3419.796 | I47: ='C1.1 Historical Wholesale'!I47 -> 1268 | J47: 0.615 | K47: 779.82 | M47: ='C1.1 Historical Wholesale'!M47 -> 0 | N47: 1.5 | O47: 0 | Q47: 779.82
C48: August | E48: ='C1.1 Historical Wholesale'!E48 -> 963 | F48: 2.697 | G48: 2597.211 | I48: ='C1.1 Historical Wholesale'!I48 -> 963 | J48: 0.615 | K48: 592.245 | M48: ='C1.1 Historical Wholesale'!M48 -> 0 | N48: 1.5 | O48: 0 | Q48: 592.245
C49: September | E49: ='C1.1 Historical Wholesale'!E49 -> 1086 | F49: 2.697 | G49: 2928.942 | I49: ='C1.1 Historical Wholesale'!I49 -> 1086 | J49: 0.615 | K49: 667.89 | M49: ='C1.1 Historical Wholesale'!M49 -> 0 | N49: 1.5 | O49: 0 | Q49: 667.89
C50: October | E50: ='C1.1 Historical Wholesale'!E50 -> 1272 | F50: 2.697 | G50: 3430.584 | I50: ='C1.1 Historical Wholesale'!I50 -> 1272 | J50: 0.615 | K50: 782.28 | M50: ='C1.1 Historical Wholesale'!M50 -> 0 | N50: 1.5 | O50: 0 | Q50: 782.28
C51: November | E51: ='C1.1 Historical Wholesale'!E51 -> 1685 | F51: 2.697 | G51: 4544.445 | I51: ='C1.1 Historical Wholesale'!I51 -> 1685 | J51: 0.615 | K51: 1036.275 | M51: ='C1.1 Historical Wholesale'!M51 -> 0 | N51: 1.5 | O51: 0 | Q51: 1036.275
C52: December | E52: ='C1.1 Historical Wholesale'!E52 -> 1728 | F52: 2.697 | G52: 4660.416 | I52: ='C1.1 Historical Wholesale'!I52 -> 1728 | J52: 0.615 | K52: 1062.72 | M52: ='C1.1 Historical Wholesale'!M52 -> 0 | N52: 1.5 | O52: 0 | Q52: 1062.72
C54: Total | E54: =SUM(E41:E52) -> 21698 | F54: =IF(E54<>0,G54/E54,0) -> 2.697 | G54: =SUM(G41:G52) -> 58519.506 | I54: =SUM(I41:I52) -> 21698 | J54: =IF(I54<>0,K54/I54,0) -> 0.615 | K54: =SUM(K41:K52) -> 13344.27 | M54: =SUM(M41:M52) -> 0 | N54: =IF(M54<>0,O54/M54,0) -> 0 | O54: =SUM(O41:O52) -> 0 | Q54: =SUM(Q41:Q52) -> 13344.27
C56: Total
E57: Network | I57: Line Connection | M57: Line Transformation | Q57: Total Line
C58: Month | E58: Units Billed | F58: Rate | G58: Amount | I58: Units Billed | J58: Rate | K58: Amount | M58: Units Billed | N58: Rate | O58: Amount | Q58: Amount
C60: January | E60: =E22+E41 -> 6978 | F60: =IF(E60<>0,G60/E60,0) -> 2.870979794 | G60: =G22+G41 -> 20033.697 | I60: =I22+I41 -> 7250 | J60: =IF(I60<>0,K60/I60,0) -> 0.6898531034 | K60: =K22+K41 -> 5001.435 | M60: =M22+M41 -> 0 | N60: =IF(M60<>0,O60/M60,0) -> 0 | O60: =O22+O41 -> 0 | Q60: =K60+O60 -> 5001.435
C61: February | E61: 6790 | F61: 2.85637732 | G61: 19394.802 | I61: 7013 | J61: 0.6836589192 | K61: 4794.5 | M61: 0 | N61: 0 | O61: 0 | Q61: 4794.5
C62: March | E62: 6173 | F62: 2.856607484 | G62: 17633.838 | I62: 6706 | J62: 0.6860304205 | K62: 4600.52 | M62: 0 | N62: 0 | O62: 0 | Q62: 4600.52
C63: April | E63: 5294 | F63: 2.840461655 | G63: 15037.404 | I63: 5506 | J63: 0.6775335997 | K63: 3730.5 | M63: 0 | N63: 0 | O63: 0 | Q63: 3730.5
C64: May | E64: 3762 | F64: 2.836547847 | G64: 10671.093 | I64: 4367 | J64: 0.6815720174 | K64: 2976.425 | M64: 0 | N64: 0 | O64: 0 | Q64: 2976.425
C65: June | E65: 3308 | F65: 2.852481258 | G65: 9436.008 | I65: 3640 | J65: 0.685010989 | K65: 2493.44 | M65: 0 | N65: 0 | O65: 0 | Q65: 2493.44
C66: July | E66: 2959 | F66: 2.85301318 | G66: 8442.066 | I66: 3103 | J66: 0.6830067676 | K66: 2119.37 | M66: 0 | N66: 0 | O66: 0 | Q66: 2119.37
C67: August | E67: 2697 | F67: 2.872521691 | G67: 7747.191 | I67: 2890 | J67: 0.6916799308 | K67: 1998.955 | M67: 0 | N67: 0 | O67: 0 | Q67: 1998.955
C68: September | E68: 2996 | F68: 2.871042056 | G68: 8601.642 | I68: 3352 | J68: 0.6927416468 | K68: 2322.07 | M68: 0 | N68: 0 | O68: 0 | Q68: 2322.07
C69: October | E69: 3828 | F69: 2.879285266 | G69: 11021.904 | I69: 3999 | J69: 0.6934208552 | K69: 2772.99 | M69: 0 | N69: 0 | O69: 0 | Q69: 2772.99
C70: November | E70: 4497 | F70: 2.867708472 | G70: 12896.085 | I70: 4595 | J70: 0.6878291621 | K70: 3160.575 | M70: 0 | N70: 0 | O70: 0 | Q70: 3160.575
C71: December | E71: 5420 | F71: 2.882962362 | G71: 15625.656 | I71: 5651 | J71: 0.6948345426 | K71: 3926.51 | M71: 0 | N71: 0 | O71: 0 | Q71: 3926.51
C73: Total | E73: =SUM(E60:E71) -> 54702 | F73: =IF(E73<>0,G73/E73,0) -> 2.861712296 | G73: =SUM(G60:G71) -> 156541.386 | I73: =SUM(I60:I71) -> 58072 | J73: =IF(I73<>0,K73/I73,0) -> 0.6870314437 | K73: =SUM(K60:K71) -> 39897.29 | M73: =SUM(M60:M71) -> 0 | N73: =IF(M73<>0,O73/M73,0) -> 0 | O73: =SUM(O60:O71) -> 0 | Q73: =SUM(Q60:Q71) -> 39897.29

Sheet D1.1 Adj Network to Curr Whsl
C2: ='A1.1 LDC Information'!C2 -> Name of LDC: Chapleau Public Utilities Corporation
C3: ='A1.1 LDC Information'!C3 -> File Number: EB-2010-0073
C4: ='A1.1 LDC Information'!C4 -> Version : 1.0
C10: ='Z1.0 OEB Control Sheet'!C10 -> Adjust RTSR-Network to Current Network Wholesale
C20: ='B1.1 Rate Class And RTSR Rates'!D20 -> Rate Class | E20: Vol Metric | G20: Current RTSR - Network | I20: Billed kWh | K20: Billed kW | M20: Billed Amount | O20: Billed Amount % | Q20: Current Wholesale Billing | S20: Adjusted RTSR - Network
G21: (A) Column H Sheet B1.1 | I21: (B) Column H Sheet B1.2 | K21: (C) Column I Sheet B1.2 | M21: (D) = (A) * (B) or (A) * (C) | O21: (F) = (D) / (E) | Q21: (H) = (G) * (F) | S21: (I) = (H) / (B) or (H) / (C)
C22: ='B1.1 Rate Class And RTSR Rates'!D22 -> Residential | E22: ='B1.1 Rate Class And RTSR Rates'!F22 -> kWh | G22: ='B1.1 Rate Class And RTSR Rates'!H22 -> 0.0053 | I22: 15271952 | K22: 0 | M22: =IF(E22="kWh",I22*G22,K22*G22) -> 80941.3456 | O22: =M22/$M$48 -> 0.5580634582 | Q22: =$Q$48*O22 -> 87360.02722 | S22: =IF(E22="kWh",IF(I22<>0,Q22/I22,),IF(K22<>0,Q22/K22,0)) -> 0.005720292155
C23: ='B1.1 Rate Class And RTSR Rates'!D23 -> General Service Less Than 50 kW | E23: ='B1.1 Rate Class And RTSR Rates'!F23 -> kWh | G23: ='B1.1 Rate Class And RTSR Rates'!H23 -> 0.0047 | I23: 5199427 | K23: 0 | M23: =IF(E23="kWh",I23*G23,K23*G23) -> 24437.3069 | O23: =M23/$M$48 -> 0.1684870433 | Q23: =$Q$48*O23 -> 26375.19527 | S23: =IF(E23="kWh",IF(I23<>0,Q23/I23,),IF(K23<>0,Q23/K23,0)) -> 0.005072711911
C24: ='B1.1 Rate Class And RTSR Rates'!D24 -> General Service 50 to 999 kW | E24: ='B1.1 Rate Class And RTSR Rates'!F24 -> kW | G24: ='B1.1 Rate Class And RTSR Rates'!H24 -> 1.9232 | I24: 7871532 | K24: 19966.7 | M24: 38399.95744 | O24: 0.2647548405 | Q24: 41445.08968 | S24: =IF(E24="kWh",IF(I24<>0,Q24/I24,),IF(K24<>0,Q24/K24,0)) -> 2.075710542
C25: ='B1.1 Rate Class And RTSR Rates'!D25 -> Unmetered Scattered Load | E25: ='B1.1 Rate Class And RTSR Rates'!F25 -> kWh | G25: ='B1.1 Rate Class And RTSR Rates'!H25 -> 0.0047 | I25: 7212 | K25: 0 | M25: 33.8964 | O25: 0.0002337043209 | Q25: 36.5843983 | S25: =IF(E25="kWh",IF(I25<>0,Q25/I25,),IF(K25<>0,Q25/K25,0)) -> 0.005072711911
C26: ='B1.1 Rate Class And RTSR Rates'!D26 -> Sentinel Lighting | E26: ='B1.1 Rate Class And RTSR Rates'!F26 -> kW | G26: ='B1.1 Rate Class And RTSR Rates'!H26 -> 1.4579 | I26: 27861 | K26: 65.7 | M26: 95.78403 | O26: 0.000660398794 | Q26: 103.3797425 | S26: =IF(E26="kWh",IF(I26<>0,Q26/I26,),IF(K26<>0,Q26/K26,0)) -> 1.573512063
C27: ='B1.1 Rate Class And RTSR Rates'!D27 -> Street Lighting | E27: ='B1.1 Rate Class And RTSR Rates'!F27 -> kW | G27: ='B1.1 Rate Class And RTSR Rates'!H27 -> 1.4505 | I27: 296713 | K27: 780 | M27: 1131.39 | O27: 0.007800554973 | Q27: 1221.109687 | S27: 1.56552524
C28: ='B1.1 Rate Class And RTSR Rates'!D28 -> Rate Class 7 | E28: ='B1.1 Rate Class And RTSR Rates'!F28 -> NA | G28: ='B1.1 Rate Class And RTSR Rates'!H28 -> 0 | I28: 0 | K28: 0 | M28: 0 | O28: 0 | Q28: 0 | S28: 0
C29: ='B1.1 Rate Class And RTSR Rates'!D29 -> Rate Class 8 | E29: ='B1.1 Rate Class And RTSR Rates'!F29 -> NA | G29: ='B1.1 Rate Class And RTSR Rates'!H29 -> 0 | I29: 0 | K29: 0 | M29: 0 | O29: 0 | Q29: 0 | S29: 0
C30: ='B1.1 Rate Class And RTSR Rates'!D30 -> Rate Class 9 | E30: ='B1.1 Rate Class And RTSR Rates'!F30 -> NA | G30: ='B1.1 Rate Class And RTSR Rates'!H30 -> 0 | I30: 0 | K30: 0 | M30: 0 | O30: 0 | Q30: 0 | S30: 0
C31: ='B1.1 Rate Class And RTSR Rates'!D31 -> Rate Class 10 | E31: ='B1.1 Rate Class And RTSR Rates'!F31 -> NA | G31: ='B1.1 Rate Class And RTSR Rates'!H31 -> 0 | I31: 0 | K31: 0 | M31: 0 | O31: 0 | Q31: 0 | S31: 0
C32: ='B1.1 Rate Class And RTSR Rates'!D32 -> Rate Class 11 | E32: ='B1.1 Rate Class And RTSR Rates'!F32 -> NA | G32: ='B1.1 Rate Class And RTSR Rates'!H32 -> 0 | I32: 0 | K32: 0 | M32: 0 | O32: 0 | Q32: 0 | S32: 0
C33: ='B1.1 Rate Class And RTSR Rates'!D33 -> Rate Class 12 | E33: ='B1.1 Rate Class And RTSR Rates'!F33 -> NA | G33: ='B1.1 Rate Class And RTSR Rates'!H33 -> 0 | I33: 0 | K33: 0 | M33: 0 | O33: 0 | Q33: 0 | S33: 0
C34: ='B1.1 Rate Class And RTSR Rates'!D34 -> Rate Class 13 | E34: ='B1.1 Rate Class And RTSR Rates'!F34 -> NA | G34: ='B1.1 Rate Class And RTSR Rates'!H34 -> 0 | I34: 0 | K34: 0 | M34: 0 | O34: 0 | Q34: 0 | S34: 0
C35: ='B1.1 Rate Class And RTSR Rates'!D35 -> Rate Class 14 | E35: ='B1.1 Rate Class And RTSR Rates'!F35 -> NA | G35: ='B1.1 Rate Class And RTSR Rates'!H35 -> 0 | I35: 0 | K35: 0 | M35: 0 | O35: 0 | Q35: 0 | S35: 0
C36: ='B1.1 Rate Class And RTSR Rates'!D36 -> Rate Class 15 | E36: ='B1.1 Rate Class And RTSR Rates'!F36 -> NA | G36: ='B1.1 Rate Class And RTSR Rates'!H36 -> 0 | I36: 0 | K36: 0 | M36: 0 | O36: 0 | Q36: 0 | S36: 0
C37: ='B1.1 Rate Class And RTSR Rates'!D37 -> Rate Class 16 | E37: ='B1.1 Rate Class And RTSR Rates'!F37 -> NA | G37: ='B1.1 Rate Class And RTSR Rates'!H37 -> 0 | I37: 0 | K37: 0 | M37: 0 | O37: 0 | Q37: 0 | S37: 0
C38: ='B1.1 Rate Class And RTSR Rates'!D38 -> Rate Class 17 | E38: ='B1.1 Rate Class And RTSR Rates'!F38 -> NA | G38: ='B1.1 Rate Class And RTSR Rates'!H38 -> 0 | I38: 0 | K38: 0 | M38: 0 | O38: 0 | Q38: 0 | S38: 0
C39: ='B1.1 Rate Class And RTSR Rates'!D39 -> Rate Class 18 | E39: ='B1.1 Rate Class And RTSR Rates'!F39 -> NA | G39: ='B1.1 Rate Class And RTSR Rates'!H39 -> 0 | I39: 0 | K39: 0 | M39: 0 | O39: 0 | Q39: 0 | S39: 0
C40: ='B1.1 Rate Class And RTSR Rates'!D40 -> Rate Class 19 | E40: ='B1.1 Rate Class And RTSR Rates'!F40 -> NA | G40: ='B1.1 Rate Class And RTSR Rates'!H40 -> 0 | I40: 0 | K40: 0 | M40: 0 | O40: 0 | Q40: 0 | S40: 0
C41: ='B1.1 Rate Class And RTSR Rates'!D41 -> Rate Class 20 | E41: ='B1.1 Rate Class And RTSR Rates'!F41 -> NA | G41: ='B1.1 Rate Class And RTSR Rates'!H41 -> 0 | I41: 0 | K41: 0 | M41: 0 | O41: 0 | Q41: 0 | S41: 0
C42: ='B1.1 Rate Class And RTSR Rates'!D42 -> Rate Class 21 | E42: ='B1.1 Rate Class And RTSR Rates'!F42 -> NA | G42: ='B1.1 Rate Class And RTSR Rates'!H42 -> 0 | I42: 0 | K42: 0 | M42: 0 | O42: 0 | Q42: 0 | S42: 0
C43: ='B1.1 Rate Class And RTSR Rates'!D43 -> Rate Class 22 | E43: ='B1.1 Rate Class And RTSR Rates'!F43 -> NA | G43: ='B1.1 Rate Class And RTSR Rates'!H43 -> 0 | I43: 0 | K43: 0 | M43: 0 | O43: 0 | Q43: 0 | S43: 0
C44: ='B1.1 Rate Class And RTSR Rates'!D44 -> Rate Class 23 | E44: ='B1.1 Rate Class And RTSR Rates'!F44 -> NA | G44: ='B1.1 Rate Class And RTSR Rates'!H44 -> 0 | I44: 0 | K44: 0 | M44: 0 | O44: 0 | Q44: 0 | S44: 0
C45: ='B1.1 Rate Class And RTSR Rates'!D45 -> Rate Class 24 | E45: ='B1.1 Rate Class And RTSR Rates'!F45 -> NA | G45: ='B1.1 Rate Class And RTSR Rates'!H45 -> 0 | I45: 0 | K45: 0 | M45: 0 | O45: 0 | Q45: 0 | S45: 0
C46: ='B1.1 Rate Class And RTSR Rates'!D46 -> Rate Class 25 | E46: ='B1.1 Rate Class And RTSR Rates'!F46 -> NA | G46: ='B1.1 Rate Class And RTSR Rates'!H46 -> 0 | I46: 0 | K46: 0 | M46: 0 | O46: 0 | Q46: 0 | S46: 0
I48: =SUM(I22:I47) -> 28674697 | K48: =SUM(K22:K47) -> 20812.4 | M48: =SUM(M22:M47) -> 145039.6804 | O48: =SUM(O22:O47) -> 1 | Q48: ='C1.2 Current Wholesale'!G73 -> 156541.386
M49: (E) | Q49: (G) Cell G73 Sheet C1.2

Sheet D1.2 Adj Conn to Curr Whsl
C2: ='A1.1 LDC Information'!C2 -> Name of LDC: Chapleau Public Utilities Corporation
C3: ='A1.1 LDC Information'!C3 -> File Number: EB-2010-0073
C4: ='A1.1 LDC Information'!C4 -> Version : 1.0
C10: ='Z1.0 OEB Control Sheet'!C11 -> Adjust RTSR-Connection to Current Connection Wholesale
C20: ='B1.1 Rate Class And RTSR Rates'!D20 -> Rate Class | E20: Vol Metric | G20: Current RTSR - Connection | I20: Billed kWh | K20: Billed kW | M20: Billed Amount | O20: Billed Amount % | Q20: Current Wholesale Billing | S20: Adjusted RTSR - Connection
G21: (A) Column J Sheet B1.1 | I21: (B) Column H Sheet B1.2 | K21: (C) Column I Sheet B1.2 | M21: (D) = (A) * (B) or (A) * (C) | O21: (F) = (D) / (E) | Q21: (H) = (G) * (F) | S21: (I) = (H) / (B) or (H) / (C)
C22: ='B1.1 Rate Class And RTSR Rates'!D22 -> Residential | E22: ='B1.1 Rate Class And RTSR Rates'!F22 -> kWh | G22: ='B1.1 Rate Class And RTSR Rates'!J22 -> 0.0015 | I22: 15271952 | K22: 0 | M22: =IF(E22="kWh",I22*G22,K22*G22) -> 22907.928 | O22: =M22/$M$48 -> 0.5533740334 | Q22: =$Q$48*O22 -> 22078.12429 | S22: =IF(E22="kWh",IF(I22<>0,Q22/I22,),IF(K22<>0,Q22/K22,0)) -> 0.001445664856
C23: ='B1.1 Rate Class And RTSR Rates'!D23 -> General Service Less Than 50 kW | E23: ='B1.1 Rate Class And RTSR Rates'!F23 -> kWh | G23: ='B1.1 Rate Class And RTSR Rates'!J23 -> 0.0014 | I23: 5199427 | K23: 0 | M23: 7279.1978 | O23: 0.1758395193 | Q23: 7015.520294 | S23: 0.001349287199
C24: ='B1.1 Rate Class And RTSR Rates'!D24 -> General Service 50 to 999 kW | E24: ='B1.1 Rate Class And RTSR Rates'!F24 -> kW | G24: ='B1.1 Rate Class And RTSR Rates'!J24 -> 0.5431 | I24: 7871532 | K24: 19966.7 | M24: 10843.91477 | O24: 0.2619503979 | Q24: 10451.11099 | S24: 0.5234270556
C25: ='B1.1 Rate Class And RTSR Rates'!D25 -> Unmetered Scattered Load | E25: ='B1.1 Rate Class And RTSR Rates'!F25 -> kWh | G25: ='B1.1 Rate Class And RTSR Rates'!J25 -> 0.0014 | I25: 7212 | K25: 0 | M25: 10.0968 | O25: 0.0002439027633 | Q25: 9.73105928 | S25: 0.001349287199
C26: ='B1.1 Rate Class And RTSR Rates'!D26 -> Sentinel Lighting | E26: ='B1.1 Rate Class And RTSR Rates'!F26 -> kW | G26: ='B1.1 Rate Class And RTSR Rates'!J26 -> 0.4287 | I26: 27861 | K26: 65.7 | M26: 28.16559 | O26: 0.0006803804405 | Q26: 27.14533574 | S26: 0.4131710159
C27: ='B1.1 Rate Class And RTSR Rates'!D27 -> Street Lighting | E27: ='B1.1 Rate Class And RTSR Rates'!F27 -> kW | G27: ='B1.1 Rate Class And RTSR Rates'!J27 -> 0.4199 | I27: 296713 | K27: 780 | M27: 327.522 | O27: 0.007911766188 | Q27: 315.65803 | S27: 0.4046897821
C28: ='B1.1 Rate Class And RTSR Rates'!D28 -> Rate Class 7 | E28: ='B1.1 Rate Class And RTSR Rates'!F28 -> NA | G28: ='B1.1 Rate Class And RTSR Rates'!J28 -> 0 | I28: 0 | K28: 0 | M28: 0 | O28: 0 | Q28: 0 | S28: 0
C29: ='B1.1 Rate Class And RTSR Rates'!D29 -> Rate Class 8 | E29: ='B1.1 Rate Class And RTSR Rates'!F29 -> NA | G29: ='B1.1 Rate Class And RTSR Rates'!J29 -> 0 | I29: 0 | K29: 0 | M29: 0 | O29: 0 | Q29: 0 | S29: 0
C30: ='B1.1 Rate Class And RTSR Rates'!D30 -> Rate Class 9 | E30: ='B1.1 Rate Class And RTSR Rates'!F30 -> NA | G30: ='B1.1 Rate Class And RTSR Rates'!J30 -> 0 | I30: 0 | K30: 0 | M30: 0 | O30: 0 | Q30: 0 | S30: 0
C31: ='B1.1 Rate Class And RTSR Rates'!D31 -> Rate Class 10 | E31: ='B1.1 Rate Class And RTSR Rates'!F31 -> NA | G31: ='B1.1 Rate Class And RTSR Rates'!J31 -> 0 | I31: 0 | K31: 0 | M31: 0 | O31: 0 | Q31: 0 | S31: 0
C32: ='B1.1 Rate Class And RTSR Rates'!D32 -> Rate Class 11 | E32: ='B1.1 Rate Class And RTSR Rates'!F32 -> NA | G32: ='B1.1 Rate Class And RTSR Rates'!J32 -> 0 | I32: 0 | K32: 0 | M32: 0 | O32: 0 | Q32: 0 | S32: 0
C33: ='B1.1 Rate Class And RTSR Rates'!D33 -> Rate Class 12 | E33: ='B1.1 Rate Class And RTSR Rates'!F33 -> NA | G33: ='B1.1 Rate Class And RTSR Rates'!J33 -> 0 | I33: 0 | K33: 0 | M33: 0 | O33: 0 | Q33: 0 | S33: 0
C34: ='B1.1 Rate Class And RTSR Rates'!D34 -> Rate Class 13 | E34: ='B1.1 Rate Class And RTSR Rates'!F34 -> NA | G34: ='B1.1 Rate Class And RTSR Rates'!J34 -> 0 | I34: 0 | K34: 0 | M34: 0 | O34: 0 | Q34: 0 | S34: 0
C35: ='B1.1 Rate Class And RTSR Rates'!D35 -> Rate Class 14 | E35: ='B1.1 Rate Class And RTSR Rates'!F35 -> NA | G35: ='B1.1 Rate Class And RTSR Rates'!J35 -> 0 | I35: 0 | K35: 0 | M35: 0 | O35: 0 | Q35: 0 | S35: 0
C36: ='B1.1 Rate Class And RTSR Rates'!D36 -> Rate Class 15 | E36: ='B1.1 Rate Class And RTSR Rates'!F36 -> NA | G36: ='B1.1 Rate Class And RTSR Rates'!J36 -> 0 | I36: 0 | K36: 0 | M36: 0 | O36: 0 | Q36: 0 | S36: 0
C37: ='B1.1 Rate Class And RTSR Rates'!D37 -> Rate Class 16 | E37: ='B1.1 Rate Class And RTSR Rates'!F37 -> NA | G37: ='B1.1 Rate Class And RTSR Rates'!J37 -> 0 | I37: 0 | K37: 0 | M37: 0 | O37: 0 | Q37: 0 | S37: 0
C38: ='B1.1 Rate Class And RTSR Rates'!D38 -> Rate Class 17 | E38: ='B1.1 Rate Class And RTSR Rates'!F38 -> NA | G38: ='B1.1 Rate Class And RTSR Rates'!J38 -> 0 | I38: 0 | K38: 0 | M38: 0 | O38: 0 | Q38: 0 | S38: 0
C39: ='B1.1 Rate Class And RTSR Rates'!D39 -> Rate Class 18 | E39: ='B1.1 Rate Class And RTSR Rates'!F39 -> NA | G39: ='B1.1 Rate Class And RTSR Rates'!J39 -> 0 | I39: 0 | K39: 0 | M39: 0 | O39: 0 | Q39: 0 | S39: 0
C40: ='B1.1 Rate Class And RTSR Rates'!D40 -> Rate Class 19 | E40: ='B1.1 Rate Class And RTSR Rates'!F40 -> NA | G40: ='B1.1 Rate Class And RTSR Rates'!J40 -> 0 | I40: 0 | K40: 0 | M40: 0 | O40: 0 | Q40: 0 | S40: 0
C41: ='B1.1 Rate Class And RTSR Rates'!D41 -> Rate Class 20 | E41: ='B1.1 Rate Class And RTSR Rates'!F41 -> NA | G41: ='B1.1 Rate Class And RTSR Rates'!J41 -> 0 | I41: 0 | K41: 0 | M41: 0 | O41: 0 | Q41: 0 | S41: 0
C42: ='B1.1 Rate Class And RTSR Rates'!D42 -> Rate Class 21 | E42: ='B1.1 Rate Class And RTSR Rates'!F42 -> NA | G42: ='B1.1 Rate Class And RTSR Rates'!J42 -> 0 | I42: 0 | K42: 0 | M42: 0 | O42: 0 | Q42: 0 | S42: 0
C43: ='B1.1 Rate Class And RTSR Rates'!D43 -> Rate Class 22 | E43: ='B1.1 Rate Class And RTSR Rates'!F43 -> NA | G43: ='B1.1 Rate Class And RTSR Rates'!J43 -> 0 | I43: 0 | K43: 0 | M43: 0 | O43: 0 | Q43: 0 | S43: 0
C44: ='B1.1 Rate Class And RTSR Rates'!D44 -> Rate Class 23 | E44: ='B1.1 Rate Class And RTSR Rates'!F44 -> NA | G44: ='B1.1 Rate Class And RTSR Rates'!J44 -> 0 | I44: 0 | K44: 0 | M44: 0 | O44: 0 | Q44: 0 | S44: 0
C45: ='B1.1 Rate Class And RTSR Rates'!D45 -> Rate Class 24 | E45: ='B1.1 Rate Class And RTSR Rates'!F45 -> NA | G45: ='B1.1 Rate Class And RTSR Rates'!J45 -> 0 | I45: 0 | K45: 0 | M45: 0 | O45: 0 | Q45: 0 | S45: 0
C46: ='B1.1 Rate Class And RTSR Rates'!D46 -> Rate Class 25 | E46: ='B1.1 Rate Class And RTSR Rates'!F46 -> NA | G46: ='B1.1 Rate Class And RTSR Rates'!J46 -> 0 | I46: 0 | K46: 0 | M46: 0 | O46: 0 | Q46: 0 | S46: 0
I48: =SUM(I22:I47) -> 28674697 | K48: =SUM(K22:K47) -> 20812.4 | M48: =SUM(M22:M47) -> 41396.82496 | O48: =SUM(O22:O47) -> 1 | Q48: ='C1.2 Current Wholesale'!Q73 -> 39897.29
M49: (E) | Q49: (G) Cell Q73 Sheet C1.2

Sheet E1.1 Adj Network to Fcst Whsl
C2: ='A1.1 LDC Information'!C2 -> Name of LDC: Chapleau Public Utilities Corporation
C3: ='A1.1 LDC Information'!C3 -> File Number: EB-2010-0073
C4: ='A1.1 LDC Information'!C4 -> Version : 1.0
C10: ='Z1.0 OEB Control Sheet'!C12 -> Adjust RTSR-Network to Forecast Network Wholesale
C20: ='B1.1 Rate Class And RTSR Rates'!D20 -> Rate Class | E20: Vol Metric | G20: Adjusted RTSR - Network | I20: Billed kWh | K20: Billed kW | M20: Billed Amount | O20: Billed Amount % | Q20: Forecast Wholesale Billing | S20: Proposed RTSR - Network
G21: (A) Column S Sheet D1.1 | I21: (B) Column H Sheet B1.2 | K21: (C) Column I Sheet B1.2 | M21: (D) = (A) * (B) or (A) * (C) | O21: (F) = (D) / (E) | Q21: (H) = (G) * (F) | S21: (I) = (H) / (B) or (H) / (C)
C22: ='B1.1 Rate Class And RTSR Rates'!D22 -> Residential | E22: ='B1.1 Rate Class And RTSR Rates'!F22 -> kWh | G22: ='D1.1 Adj Network to Curr Whsl'!S22 -> 0.005720292155 | I22: 15271952 | K22: 0 | M22: =IF(E22="kWh",I22*G22,K22*G22) -> 87360.02722 | O22: =M22/$M$48 -> 0.5580634582 | Q22: =$Q$48*O22 -> 87360.02722 | S22: =IF(E22="kWh",IF(I22<>0,Q22/I22,),IF(K22<>0,Q22/K22,0)) -> 0.005720292155
C23: ='B1.1 Rate Class And RTSR Rates'!D23 -> General Service Less Than 50 kW | E23: ='B1.1 Rate Class And RTSR Rates'!F23 -> kWh | G23: ='D1.1 Adj Network to Curr Whsl'!S23 -> 0.005072711911 | I23: 5199427 | K23: 0 | M23: 26375.19527 | O23: 0.1684870433 | Q23: 26375.19527 | S23: 0.005072711911
C24: ='B1.1 Rate Class And RTSR Rates'!D24 -> General Service 50 to 999 kW | E24: ='B1.1 Rate Class And RTSR Rates'!F24 -> kW | G24: ='D1.1 Adj Network to Curr Whsl'!S24 -> 2.075710542 | I24: 7871532 | K24: 19966.7 | M24: 41445.08968 | O24: 0.2647548405 | Q24: 41445.08968 | S24: 2.075710542
C25: ='B1.1 Rate Class And RTSR Rates'!D25 -> Unmetered Scattered Load | E25: ='B1.1 Rate Class And RTSR Rates'!F25 -> kWh | G25: ='D1.1 Adj Network to Curr Whsl'!S25 -> 0.005072711911 | I25: 7212 | K25: 0 | M25: 36.5843983 | O25: 0.0002337043209 | Q25: 36.5843983 | S25: 0.005072711911
C26: ='B1.1 Rate Class And RTSR Rates'!D26 -> Sentinel Lighting | E26: ='B1.1 Rate Class And RTSR Rates'!F26 -> kW | G26: ='D1.1 Adj Network to Curr Whsl'!S26 -> 1.573512063 | I26: 27861 | K26: 65.7 | M26: 103.3797425 | O26: 0.000660398794 | Q26: 103.3797425 | S26: 1.573512063
C27: ='B1.1 Rate Class And RTSR Rates'!D27 -> Street Lighting | E27: ='B1.1 Rate Class And RTSR Rates'!F27 -> kW | G27: ='D1.1 Adj Network to Curr Whsl'!S27 -> 1.56552524 | I27: 296713 | K27: 780 | M27: 1221.109687 | O27: 0.007800554973 | Q27: 1221.109687 | S27: 1.56552524
C28: ='B1.1 Rate Class And RTSR Rates'!D28 -> Rate Class 7 | E28: ='B1.1 Rate Class And RTSR Rates'!F28 -> NA | G28: ='D1.1 Adj Network to Curr Whsl'!S28 -> 0 | I28: 0 | K28: 0 | M28: 0 | O28: 0 | Q28: 0 | S28: 0
C29: ='B1.1 Rate Class And RTSR Rates'!D29 -> Rate Class 8 | E29: ='B1.1 Rate Class And RTSR Rates'!F29 -> NA | G29: ='D1.1 Adj Network to Curr Whsl'!S29 -> 0 | I29: 0 | K29: 0 | M29: 0 | O29: 0 | Q29: 0 | S29: 0
C30: ='B1.1 Rate Class And RTSR Rates'!D30 -> Rate Class 9 | E30: ='B1.1 Rate Class And RTSR Rates'!F30 -> NA | G30: ='D1.1 Adj Network to Curr Whsl'!S30 -> 0 | I30: 0 | K30: 0 | M30: 0 | O30: 0 | Q30: 0 | S30: 0
C31: ='B1.1 Rate Class And RTSR Rates'!D31 -> Rate Class 10 | E31: ='B1.1 Rate Class And RTSR Rates'!F31 -> NA | G31: ='D1.1 Adj Network to Curr Whsl'!S31 -> 0 | I31: 0 | K31: 0 | M31: 0 | O31: 0 | Q31: 0 | S31: 0
C32: ='B1.1 Rate Class And RTSR Rates'!D32 -> Rate Class 11 | E32: ='B1.1 Rate Class And RTSR Rates'!F32 -> NA | G32: ='D1.1 Adj Network to Curr Whsl'!S32 -> 0 | I32: 0 | K32: 0 | M32: 0 | O32: 0 | Q32: 0 | S32: 0
C33: ='B1.1 Rate Class And RTSR Rates'!D33 -> Rate Class 12 | E33: ='B1.1 Rate Class And RTSR Rates'!F33 -> NA | G33: ='D1.1 Adj Network to Curr Whsl'!S33 -> 0 | I33: 0 | K33: 0 | M33: 0 | O33: 0 | Q33: 0 | S33: 0
C34: ='B1.1 Rate Class And RTSR Rates'!D34 -> Rate Class 13 | E34: ='B1.1 Rate Class And RTSR Rates'!F34 -> NA | G34: ='D1.1 Adj Network to Curr Whsl'!S34 -> 0 | I34: 0 | K34: 0 | M34: 0 | O34: 0 | Q34: 0 | S34: 0
C35: ='B1.1 Rate Class And RTSR Rates'!D35 -> Rate Class 14 | E35: ='B1.1 Rate Class And RTSR Rates'!F35 -> NA | G35: ='D1.1 Adj Network to Curr Whsl'!S35 -> 0 | I35: 0 | K35: 0 | M35: 0 | O35: 0 | Q35: 0 | S35: 0
C36: ='B1.1 Rate Class And RTSR Rates'!D36 -> Rate Class 15 | E36: ='B1.1 Rate Class And RTSR Rates'!F36 -> NA | G36: ='D1.1 Adj Network to Curr Whsl'!S36 -> 0 | I36: 0 | K36: 0 | M36: 0 | O36: 0 | Q36: 0 | S36: 0
C37: ='B1.1 Rate Class And RTSR Rates'!D37 -> Rate Class 16 | E37: ='B1.1 Rate Class And RTSR Rates'!F37 -> NA | G37: ='D1.1 Adj Network to Curr Whsl'!S37 -> 0 | I37: 0 | K37: 0 | M37: 0 | O37: 0 | Q37: 0 | S37: 0
C38: ='B1.1 Rate Class And RTSR Rates'!D38 -> Rate Class 17 | E38: ='B1.1 Rate Class And RTSR Rates'!F38 -> NA | G38: ='D1.1 Adj Network to Curr Whsl'!S38 -> 0 | I38: 0 | K38: 0 | M38: 0 | O38: 0 | Q38: 0 | S38: 0
C39: ='B1.1 Rate Class And RTSR Rates'!D39 -> Rate Class 18 | E39: ='B1.1 Rate Class And RTSR Rates'!F39 -> NA | G39: ='D1.1 Adj Network to Curr Whsl'!S39 -> 0 | I39: 0 | K39: 0 | M39: 0 | O39: 0 | Q39: 0 | S39: 0
C40: ='B1.1 Rate Class And RTSR Rates'!D40 -> Rate Class 19 | E40: ='B1.1 Rate Class And RTSR Rates'!F40 -> NA | G40: ='D1.1 Adj Network to Curr Whsl'!S40 -> 0 | I40: 0 | K40: 0 | M40: 0 | O40: 0 | Q40: 0 | S40: 0
C41: ='B1.1 Rate Class And RTSR Rates'!D41 -> Rate Class 20 | E41: ='B1.1 Rate Class And RTSR Rates'!F41 -> NA | G41: ='D1.1 Adj Network to Curr Whsl'!S41 -> 0 | I41: 0 | K41: 0 | M41: 0 | O41: 0 | Q41: 0 | S41: 0
C42: ='B1.1 Rate Class And RTSR Rates'!D42 -> Rate Class 21 | E42: ='B1.1 Rate Class And RTSR Rates'!F42 -> NA | G42: ='D1.1 Adj Network to Curr Whsl'!S42 -> 0 | I42: 0 | K42: 0 | M42: 0 | O42: 0 | Q42: 0 | S42: 0
C43: ='B1.1 Rate Class And RTSR Rates'!D43 -> Rate Class 22 | E43: ='B1.1 Rate Class And RTSR Rates'!F43 -> NA | G43: ='D1.1 Adj Network to Curr Whsl'!S43 -> 0 | I43: 0 | K43: 0 | M43: 0 | O43: 0 | Q43: 0 | S43: 0
C44: ='B1.1 Rate Class And RTSR Rates'!D44 -> Rate Class 23 | E44: ='B1.1 Rate Class And RTSR Rates'!F44 -> NA | G44: ='D1.1 Adj Network to Curr Whsl'!S44 -> 0 | I44: 0 | K44: 0 | M44: 0 | O44: 0 | Q44: 0 | S44: 0
C45: ='B1.1 Rate Class And RTSR Rates'!D45 -> Rate Class 24 | E45: ='B1.1 Rate Class And RTSR Rates'!F45 -> NA | G45: ='D1.1 Adj Network to Curr Whsl'!S45 -> 0 | I45: 0 | K45: 0 | M45: 0 | O45: 0 | Q45: 0 | S45: 0
C46: ='B1.1 Rate Class And RTSR Rates'!D46 -> Rate Class 25 | E46: ='B1.1 Rate Class And RTSR Rates'!F46 -> NA | G46: ='D1.1 Adj Network to Curr Whsl'!S46 -> 0 | I46: 0 | K46: 0 | M46: 0 | O46: 0 | Q46: 0 | S46: 0
I48: =SUM(I22:I47) -> 28674697 | K48: =SUM(K22:K47) -> 20812.4 | M48: =SUM(M22:M47) -> 156541.386 | O48: =SUM(O22:O47) -> 1 | Q48: ='C1.3 Forecast Wholesale'!G73 -> 156541.386
M49: (E) | Q49: Cell G73 Sheet C1.3

Sheet E1.2 Adj Conn to Fcst Whsl
C2: ='A1.1 LDC Information'!C2 -> Name of LDC: Chapleau Public Utilities Corporation
C3: ='A1.1 LDC Information'!C3 -> File Number: EB-2010-0073
C4: ='A1.1 LDC Information'!C4 -> Version : 1.0
C10: ='Z1.0 OEB Control Sheet'!C13 -> Adjust RTSR-Connection to Forecast Connection Wholesale
C20: ='B1.1 Rate Class And RTSR Rates'!D20 -> Rate Class | E20: Vol Metric | G20: Adjusted RTSR - Connection | I20: Billed kWh | K20: Billed kW | M20: Billed Amount | O20: Billed Amount % | Q20: Forecast Wholesale Billing | S20: Proposed RTSR - Connection
G21: (A) Column S Sheet D1.2 | I21: (B) Column H Sheet B1.2 | K21: (C) Column I Sheet B1.2 | M21: (D) = (A) * (B) or (A) * (C) | O21: (F) = (D) / (E) | Q21: (H) = (G) * (F) | S21: (I) = (H) / (B) or (H) / (C)
C22: ='B1.1 Rate Class And RTSR Rates'!D22 -> Residential | E22: ='B1.1 Rate Class And RTSR Rates'!F22 -> kWh | G22: ='D1.2 Adj Conn to Curr Whsl'!S22 -> 0.001445664856 | I22: 15271952 | K22: 0 | M22: =IF(E22="kWh",I22*G22,K22*G22) -> 22078.12429 | O22: =M22/$M$48 -> 0.5533740334 | Q22: =$Q$48*O22 -> 22078.12429 | S22: =IF(E22="kWh",IF(I22<>0,Q22/I22,),IF(K22<>0,Q22/K22,0)) -> 0.001445664856
C23: ='B1.1 Rate Class And RTSR Rates'!D23 -> General Service Less Than 50 kW | E23: ='B1.1 Rate Class And RTSR Rates'!F23 -> kWh | G23: ='D1.2 Adj Conn to Curr Whsl'!S23 -> 0.001349287199 | I23: 5199427 | K23: 0 | M23: 7015.520294 | O23: 0.1758395193 | Q23: 7015.520294 | S23: 0.001349287199
C24: ='B1.1 Rate Class And RTSR Rates'!D24 -> General Service 50 to 999 kW | E24: ='B1.1 Rate Class And RTSR Rates'!F24 -> kW | G24: ='D1.2 Adj Conn to Curr Whsl'!S24 -> 0.5234270556 | I24: 7871532 | K24: 19966.7 | M24: 10451.11099 | O24: 0.2619503979 | Q24: 10451.11099 | S24: 0.5234270556
C25: ='B1.1 Rate Class And RTSR Rates'!D25 -> Unmetered Scattered Load | E25: ='B1.1 Rate Class And RTSR Rates'!F25 -> kWh | G25: ='D1.2 Adj Conn to Curr Whsl'!S25 -> 0.001349287199 | I25: 7212 | K25: 0 | M25: 9.73105928 | O25: 0.0002439027633 | Q25: 9.73105928 | S25: 0.001349287199
C26: ='B1.1 Rate Class And RTSR Rates'!D26 -> Sentinel Lighting | E26: ='B1.1 Rate Class And RTSR Rates'!F26 -> kW | G26: ='D1.2 Adj Conn to Curr Whsl'!S26 -> 0.4131710159 | I26: 27861 | K26: 65.7 | M26: 27.14533574 | O26: 0.0006803804405 | Q26: 27.14533574 | S26: 0.4131710159
C27: ='B1.1 Rate Class And RTSR Rates'!D27 -> Street Lighting | E27: ='B1.1 Rate Class And RTSR Rates'!F27 -> kW | G27: ='D1.2 Adj Conn to Curr Whsl'!S27 -> 0.4046897821 | I27: 296713 | K27: 780 | M27: 315.65803 | O27: 0.007911766188 | Q27: 315.65803 | S27: 0.4046897821
C28: ='B1.1 Rate Class And RTSR Rates'!D28 -> Rate Class 7 | E28: ='B1.1 Rate Class And RTSR Rates'!F28 -> NA | G28: ='D1.2 Adj Conn to Curr Whsl'!S28 -> 0 | I28: 0 | K28: 0 | M28: 0 | O28: 0 | Q28: 0 | S28: 0
C29: ='B1.1 Rate Class And RTSR Rates'!D29 -> Rate Class 8 | E29: ='B1.1 Rate Class And RTSR Rates'!F29 -> NA | G29: ='D1.2 Adj Conn to Curr Whsl'!S29 -> 0 | I29: 0 | K29: 0 | M29: 0 | O29: 0 | Q29: 0 | S29: 0
C30: ='B1.1 Rate Class And RTSR Rates'!D30 -> Rate Class 9 | E30: ='B1.1 Rate Class And RTSR Rates'!F30 -> NA | G30: ='D1.2 Adj Conn to Curr Whsl'!S30 -> 0 | I30: 0 | K30: 0 | M30: 0 | O30: 0 | Q30: 0 | S30: 0
C31: ='B1.1 Rate Class And RTSR Rates'!D31 -> Rate Class 10 | E31: ='B1.1 Rate Class And RTSR Rates'!F31 -> NA | G31: ='D1.2 Adj Conn to Curr Whsl'!S31 -> 0 | I31: 0 | K31: 0 | M31: 0 | O31: 0 | Q31: 0 | S31: 0
C32: ='B1.1 Rate Class And RTSR Rates'!D32 -> Rate Class 11 | E32: ='B1.1 Rate Class And RTSR Rates'!F32 -> NA | G32: ='D1.2 Adj Conn to Curr Whsl'!S32 -> 0 | I32: 0 | K32: 0 | M32: 0 | O32: 0 | Q32: 0 | S32: 0
C33: ='B1.1 Rate Class And RTSR Rates'!D33 -> Rate Class 12 | E33: ='B1.1 Rate Class And RTSR Rates'!F33 -> NA | G33: ='D1.2 Adj Conn to Curr Whsl'!S33 -> 0 | I33: 0 | K33: 0 | M33: 0 | O33: 0 | Q33: 0 | S33: 0
C34: ='B1.1 Rate Class And RTSR Rates'!D34 -> Rate Class 13 | E34: ='B1.1 Rate Class And RTSR Rates'!F34 -> NA | G34: ='D1.2 Adj Conn to Curr Whsl'!S34 -> 0 | I34: 0 | K34: 0 | M34: 0 | O34: 0 | Q34: 0 | S34: 0
C35: ='B1.1 Rate Class And RTSR Rates'!D35 -> Rate Class 14 | E35: ='B1.1 Rate Class And RTSR Rates'!F35 -> NA | G35: ='D1.2 Adj Conn to Curr Whsl'!S35 -> 0 | I35: 0 | K35: 0 | M35: 0 | O35: 0 | Q35: 0 | S35: 0
C36: ='B1.1 Rate Class And RTSR Rates'!D36 -> Rate Class 15 | E36: ='B1.1 Rate Class And RTSR Rates'!F36 -> NA | G36: ='D1.2 Adj Conn to Curr Whsl'!S36 -> 0 | I36: 0 | K36: 0 | M36: 0 | O36: 0 | Q36: 0 | S36: 0
C37: ='B1.1 Rate Class And RTSR Rates'!D37 -> Rate Class 16 | E37: ='B1.1 Rate Class And RTSR Rates'!F37 -> NA | G37: ='D1.2 Adj Conn to Curr Whsl'!S37 -> 0 | I37: 0 | K37: 0 | M37: 0 | O37: 0 | Q37: 0 | S37: 0
C38: ='B1.1 Rate Class And RTSR Rates'!D38 -> Rate Class 17 | E38: ='B1.1 Rate Class And RTSR Rates'!F38 -> NA | G38: ='D1.2 Adj Conn to Curr Whsl'!S38 -> 0 | I38: 0 | K38: 0 | M38: 0 | O38: 0 | Q38: 0 | S38: 0
C39: ='B1.1 Rate Class And RTSR Rates'!D39 -> Rate Class 18 | E39: ='B1.1 Rate Class And RTSR Rates'!F39 -> NA | G39: ='D1.2 Adj Conn to Curr Whsl'!S39 -> 0 | I39: 0 | K39: 0 | M39: 0 | O39: 0 | Q39: 0 | S39: 0
C40: ='B1.1 Rate Class And RTSR Rates'!D40 -> Rate Class 19 | E40: ='B1.1 Rate Class And RTSR Rates'!F40 -> NA | G40: ='D1.2 Adj Conn to Curr Whsl'!S40 -> 0 | I40: 0 | K40: 0 | M40: 0 | O40: 0 | Q40: 0 | S40: 0
C41: ='B1.1 Rate Class And RTSR Rates'!D41 -> Rate Class 20 | E41: ='B1.1 Rate Class And RTSR Rates'!F41 -> NA | G41: ='D1.2 Adj Conn to Curr Whsl'!S41 -> 0 | I41: 0 | K41: 0 | M41: 0 | O41: 0 | Q41: 0 | S41: 0
C42: ='B1.1 Rate Class And RTSR Rates'!D42 -> Rate Class 21 | E42: ='B1.1 Rate Class And RTSR Rates'!F42 -> NA | G42: ='D1.2 Adj Conn to Curr Whsl'!S42 -> 0 | I42: 0 | K42: 0 | M42: 0 | O42: 0 | Q42: 0 | S42: 0
C43: ='B1.1 Rate Class And RTSR Rates'!D43 -> Rate Class 22 | E43: ='B1.1 Rate Class And RTSR Rates'!F43 -> NA | G43: ='D1.2 Adj Conn to Curr Whsl'!S43 -> 0 | I43: 0 | K43: 0 | M43: 0 | O43: 0 | Q43: 0 | S43: 0
C44: ='B1.1 Rate Class And RTSR Rates'!D44 -> Rate Class 23 | E44: ='B1.1 Rate Class And RTSR Rates'!F44 -> NA | G44: ='D1.2 Adj Conn to Curr Whsl'!S44 -> 0 | I44: 0 | K44: 0 | M44: 0 | O44: 0 | Q44: 0 | S44: 0
C45: ='B1.1 Rate Class And RTSR Rates'!D45 -> Rate Class 24 | E45: ='B1.1 Rate Class And RTSR Rates'!F45 -> NA | G45: ='D1.2 Adj Conn to Curr Whsl'!S45 -> 0 | I45: 0 | K45: 0 | M45: 0 | O45: 0 | Q45: 0 | S45: 0
C46: ='B1.1 Rate Class And RTSR Rates'!D46 -> Rate Class 25 | E46: ='B1.1 Rate Class And RTSR Rates'!F46 -> NA | G46: ='D1.2 Adj Conn to Curr Whsl'!S46 -> 0 | I46: 0 | K46: 0 | M46: 0 | O46: 0 | Q46: 0 | S46: 0
I48: =SUM(I22:I47) -> 28674697 | K48: =SUM(K22:K47) -> 20812.4 | M48: =SUM(M22:M47) -> 39897.29 | O48: =SUM(O22:O47) -> 1 | Q48: ='C1.3 Forecast Wholesale'!Q73 -> 39897.29
M49: (E) | Q49: Cell Q73 Sheet C1.3

Sheet F1.1 IRM RTSR Adj - Network
C2: ='A1.1 LDC Information'!C2 -> Name of LDC: Chapleau Public Utilities Corporation
C3: ='A1.1 LDC Information'!C3 -> File Number: EB-2010-0073
C10: ='Z1.0 OEB Control Sheet'!C14 -> IRM RTSR Adjustment Calculation - Network
C20: ='B1.1 Rate Class And RTSR Rates'!D20 -> Rate Class | E20: Vol Metric | G20: Current RTSR - Network | I20: ='E1.1 Adj Network to Fcst Whsl'!S20 -> Proposed RTSR - Network | K20: RTSR - Network Adjustment
G21: (A) Column H Sheet B1.1 | I21: (B) Column S Sheet E1.1 | K21: C = B - A
C22: ='B1.1 Rate Class And RTSR Rates'!D22 -> Residential | E22: ='B1.1 Rate Class And RTSR Rates'!F22 -> kWh | G22: ='B1.1 Rate Class And RTSR Rates'!H22 -> 0.0053 | I22: ='E1.1 Adj Network to Fcst Whsl'!S22 -> 0.005720292155 | K22: =I22-G22 -> 0.0004202921551
C23: ='B1.1 Rate Class And RTSR Rates'!D23 -> General Service Less Than 50 kW | E23: ='B1.1 Rate Class And RTSR Rates'!F23 -> kWh | G23: ='B1.1 Rate Class And RTSR Rates'!H23 -> 0.0047 | I23: ='E1.1 Adj Network to Fcst Whsl'!S23 -> 0.005072711911 | K23: =I23-G23 -> 0.0003727119111
C24: ='B1.1 Rate Class And RTSR Rates'!D24 -> General Service 50 to 999 kW | E24: ='B1.1 Rate Class And RTSR Rates'!F24 -> kW | G24: ='B1.1 Rate Class And RTSR Rates'!H24 -> 1.9232 | I24: ='E1.1 Adj Network to Fcst Whsl'!S24 -> 2.075710542 | K24: 0.152510542
C25: ='B1.1 Rate Class And RTSR Rates'!D25 -> Unmetered Scattered Load | E25: ='B1.1 Rate Class And RTSR Rates'!F25 -> kWh | G25: ='B1.1 Rate Class And RTSR Rates'!H25 -> 0.0047 | I25: ='E1.1 Adj Network to Fcst Whsl'!S25 -> 0.005072711911 | K25: 0.0003727119111
C26: ='B1.1 Rate Class And RTSR Rates'!D26 -> Sentinel Lighting | E26: ='B1.1 Rate Class And RTSR Rates'!F26 -> kW | G26: ='B1.1 Rate Class And RTSR Rates'!H26 -> 1.4579 | I26: ='E1.1 Adj Network to Fcst Whsl'!S26 -> 1.573512063 | K26: 0.1156120628
C27: ='B1.1 Rate Class And RTSR Rates'!D27 -> Street Lighting | E27: ='B1.1 Rate Class And RTSR Rates'!F27 -> kW | G27: ='B1.1 Rate Class And RTSR Rates'!H27 -> 1.4505 | I27: ='E1.1 Adj Network to Fcst Whsl'!S27 -> 1.56552524 | K27: 0.1150252398
C28: ='B1.1 Rate Class And RTSR Rates'!D28 -> Rate Class 7 | E28: ='B1.1 Rate Class And RTSR Rates'!F28 -> NA | G28: ='B1.1 Rate Class And RTSR Rates'!H28 -> 0 | I28: ='E1.1 Adj Network to Fcst Whsl'!S28 -> 0 | K28: =I28-G28 -> 0
C29: ='B1.1 Rate Class And RTSR Rates'!D29 -> Rate Class 8 | E29: ='B1.1 Rate Class And RTSR Rates'!F29 -> NA | G29: ='B1.1 Rate Class And RTSR Rates'!H29 -> 0 | I29: ='E1.1 Adj Network to Fcst Whsl'!S29 -> 0 | K29: 0
C30: ='B1.1 Rate Class And RTSR Rates'!D30 -> Rate Class 9 | E30: ='B1.1 Rate Class And RTSR Rates'!F30 -> NA | G30: ='B1.1 Rate Class And RTSR Rates'!H30 -> 0 | I30: ='E1.1 Adj Network to Fcst Whsl'!S30 -> 0 | K30: 0
C31: ='B1.1 Rate Class And RTSR Rates'!D31 -> Rate Class 10 | E31: ='B1.1 Rate Class And RTSR Rates'!F31 -> NA | G31: ='B1.1 Rate Class And RTSR Rates'!H31 -> 0 | I31: ='E1.1 Adj Network to Fcst Whsl'!S31 -> 0 | K31: 0
C32: ='B1.1 Rate Class And RTSR Rates'!D32 -> Rate Class 11 | E32: ='B1.1 Rate Class And RTSR Rates'!F32 -> NA | G32: ='B1.1 Rate Class And RTSR Rates'!H32 -> 0 | I32: ='E1.1 Adj Network to Fcst Whsl'!S32 -> 0 | K32: 0
C33: ='B1.1 Rate Class And RTSR Rates'!D33 -> Rate Class 12 | E33: ='B1.1 Rate Class And RTSR Rates'!F33 -> NA | G33: ='B1.1 Rate Class And RTSR Rates'!H33 -> 0 | I33: ='E1.1 Adj Network to Fcst Whsl'!S33 -> 0 | K33: 0
C34: ='B1.1 Rate Class And RTSR Rates'!D34 -> Rate Class 13 | E34: ='B1.1 Rate Class And RTSR Rates'!F34 -> NA | G34: ='B1.1 Rate Class And RTSR Rates'!H34 -> 0 | I34: ='E1.1 Adj Network to Fcst Whsl'!S34 -> 0 | K34: 0
C35: ='B1.1 Rate Class And RTSR Rates'!D35 -> Rate Class 14 | E35: ='B1.1 Rate Class And RTSR Rates'!F35 -> NA | G35: ='B1.1 Rate Class And RTSR Rates'!H35 -> 0 | I35: ='E1.1 Adj Network to Fcst Whsl'!S35 -> 0 | K35: 0
C36: ='B1.1 Rate Class And RTSR Rates'!D36 -> Rate Class 15 | E36: ='B1.1 Rate Class And RTSR Rates'!F36 -> NA | G36: ='B1.1 Rate Class And RTSR Rates'!H36 -> 0 | I36: ='E1.1 Adj Network to Fcst Whsl'!S36 -> 0 | K36: 0
C37: ='B1.1 Rate Class And RTSR Rates'!D37 -> Rate Class 16 | E37: ='B1.1 Rate Class And RTSR Rates'!F37 -> NA | G37: ='B1.1 Rate Class And RTSR Rates'!H37 -> 0 | I37: ='E1.1 Adj Network to Fcst Whsl'!S37 -> 0 | K37: 0
C38: ='B1.1 Rate Class And RTSR Rates'!D38 -> Rate Class 17 | E38: ='B1.1 Rate Class And RTSR Rates'!F38 -> NA | G38: ='B1.1 Rate Class And RTSR Rates'!H38 -> 0 | I38: ='E1.1 Adj Network to Fcst Whsl'!S38 -> 0 | K38: 0
C39: ='B1.1 Rate Class And RTSR Rates'!D39 -> Rate Class 18 | E39: ='B1.1 Rate Class And RTSR Rates'!F39 -> NA | G39: ='B1.1 Rate Class And RTSR Rates'!H39 -> 0 | I39: ='E1.1 Adj Network to Fcst Whsl'!S39 -> 0 | K39: 0
C40: ='B1.1 Rate Class And RTSR Rates'!D40 -> Rate Class 19 | E40: ='B1.1 Rate Class And RTSR Rates'!F40 -> NA | G40: ='B1.1 Rate Class And RTSR Rates'!H40 -> 0 | I40: ='E1.1 Adj Network to Fcst Whsl'!S40 -> 0 | K40: 0
C41: ='B1.1 Rate Class And RTSR Rates'!D41 -> Rate Class 20 | E41: ='B1.1 Rate Class And RTSR Rates'!F41 -> NA | G41: ='B1.1 Rate Class And RTSR Rates'!H41 -> 0 | I41: ='E1.1 Adj Network to Fcst Whsl'!S41 -> 0 | K41: 0
C42: ='B1.1 Rate Class And RTSR Rates'!D42 -> Rate Class 21 | E42: ='B1.1 Rate Class And RTSR Rates'!F42 -> NA | G42: ='B1.1 Rate Class And RTSR Rates'!H42 -> 0 | I42: ='E1.1 Adj Network to Fcst Whsl'!S42 -> 0 | K42: 0
C43: ='B1.1 Rate Class And RTSR Rates'!D43 -> Rate Class 22 | E43: ='B1.1 Rate Class And RTSR Rates'!F43 -> NA | G43: ='B1.1 Rate Class And RTSR Rates'!H43 -> 0 | I43: ='E1.1 Adj Network to Fcst Whsl'!S43 -> 0 | K43: 0
C44: ='B1.1 Rate Class And RTSR Rates'!D44 -> Rate Class 23 | E44: ='B1.1 Rate Class And RTSR Rates'!F44 -> NA | G44: ='B1.1 Rate Class And RTSR Rates'!H44 -> 0 | I44: ='E1.1 Adj Network to Fcst Whsl'!S44 -> 0 | K44: 0
C45: ='B1.1 Rate Class And RTSR Rates'!D45 -> Rate Class 24 | E45: ='B1.1 Rate Class And RTSR Rates'!F45 -> NA | G45: ='B1.1 Rate Class And RTSR Rates'!H45 -> 0 | I45: ='E1.1 Adj Network to Fcst Whsl'!S45 -> 0 | K45: 0
C46: ='B1.1 Rate Class And RTSR Rates'!D46 -> Rate Class 25 | E46: ='B1.1 Rate Class And RTSR Rates'!F46 -> NA | G46: ='B1.1 Rate Class And RTSR Rates'!H46 -> 0 | I46: ='E1.1 Adj Network to Fcst Whsl'!S46 -> 0 | K46: 0

Sheet F1.2 IRM RTSR Adj - Connection
C2: ='A1.1 LDC Information'!C2 -> Name of LDC: Chapleau Public Utilities Corporation
C3: ='A1.1 LDC Information'!C3 -> File Number: EB-2010-0073
C10: ='Z1.0 OEB Control Sheet'!C15 -> IRM RTSR Adjustment Calculation - Connection
C20: ='B1.1 Rate Class And RTSR Rates'!D20 -> Rate Class | E20: Vol Metric | G20: Current RTSR - Connection | I20: ='E1.2 Adj Conn to Fcst Whsl'!S20 -> Proposed RTSR - Connection | K20: RTSR - Network Adjustment
G21: (A) Column J Sheet B1.1 | I21: (B) Column S Sheet E1.2 | K21: C = B - A
C22: ='B1.1 Rate Class And RTSR Rates'!D22 -> Residential | E22: ='B1.1 Rate Class And RTSR Rates'!F22 -> kWh | G22: ='B1.1 Rate Class And RTSR Rates'!J22 -> 0.0015 | I22: ='E1.2 Adj Conn to Fcst Whsl'!S22 -> 0.001445664856 | K22: =I22-G22 -> -5.433514387e-05
C23: ='B1.1 Rate Class And RTSR Rates'!D23 -> General Service Less Than 50 kW | E23: ='B1.1 Rate Class And RTSR Rates'!F23 -> kWh | G23: ='B1.1 Rate Class And RTSR Rates'!J23 -> 0.0014 | I23: ='E1.2 Adj Conn to Fcst Whsl'!S23 -> 0.001349287199 | K23: -5.071280095e-05
C24: ='B1.1 Rate Class And RTSR Rates'!D24 -> General Service 50 to 999 kW | E24: ='B1.1 Rate Class And RTSR Rates'!F24 -> kW | G24: ='B1.1 Rate Class And RTSR Rates'!J24 -> 0.5431 | I24: ='E1.2 Adj Conn to Fcst Whsl'!S24 -> 0.5234270556 | K24: -0.01967294442
C25: ='B1.1 Rate Class And RTSR Rates'!D25 -> Unmetered Scattered Load | E25: ='B1.1 Rate Class And RTSR Rates'!F25 -> kWh | G25: ='B1.1 Rate Class And RTSR Rates'!J25 -> 0.0014 | I25: ='E1.2 Adj Conn to Fcst Whsl'!S25 -> 0.001349287199 | K25: -5.071280095e-05
C26: ='B1.1 Rate Class And RTSR Rates'!D26 -> Sentinel Lighting | E26: ='B1.1 Rate Class And RTSR Rates'!F26 -> kW | G26: ='B1.1 Rate Class And RTSR Rates'!J26 -> 0.4287 | I26: ='E1.2 Adj Conn to Fcst Whsl'!S26 -> 0.4131710159 | K26: -0.01552898412
C27: ='B1.1 Rate Class And RTSR Rates'!D27 -> Street Lighting | E27: ='B1.1 Rate Class And RTSR Rates'!F27 -> kW | G27: ='B1.1 Rate Class And RTSR Rates'!J27 -> 0.4199 | I27: ='E1.2 Adj Conn to Fcst Whsl'!S27 -> 0.4046897821 | K27: -0.01521021794
C28: ='B1.1 Rate Class And RTSR Rates'!D28 -> Rate Class 7 | E28: ='B1.1 Rate Class And RTSR Rates'!F28 -> NA | G28: ='B1.1 Rate Class And RTSR Rates'!J28 -> 0 | I28: ='E1.2 Adj Conn to Fcst Whsl'!S28 -> 0 | K28: 0
C29: ='B1.1 Rate Class And RTSR Rates'!D29 -> Rate Class 8 | E29: ='B1.1 Rate Class And RTSR Rates'!F29 -> NA | G29: ='B1.1 Rate Class And RTSR Rates'!J29 -> 0 | I29: ='E1.2 Adj Conn to Fcst Whsl'!S29 -> 0 | K29: 0
C30: ='B1.1 Rate Class And RTSR Rates'!D30 -> Rate Class 9 | E30: ='B1.1 Rate Class And RTSR Rates'!F30 -> NA | G30: ='B1.1 Rate Class And RTSR Rates'!J30 -> 0 | I30: ='E1.2 Adj Conn to Fcst Whsl'!S30 -> 0 | K30: 0
C31: ='B1.1 Rate Class And RTSR Rates'!D31 -> Rate Class 10 | E31: ='B1.1 Rate Class And RTSR Rates'!F31 -> NA | G31: ='B1.1 Rate Class And RTSR Rates'!J31 -> 0 | I31: ='E1.2 Adj Conn to Fcst Whsl'!S31 -> 0 | K31: 0
C32: ='B1.1 Rate Class And RTSR Rates'!D32 -> Rate Class 11 | E32: ='B1.1 Rate Class And RTSR Rates'!F32 -> NA | G32: ='B1.1 Rate Class And RTSR Rates'!J32 -> 0 | I32: ='E1.2 Adj Conn to Fcst Whsl'!S32 -> 0 | K32: 0
C33: ='B1.1 Rate Class And RTSR Rates'!D33 -> Rate Class 12 | E33: ='B1.1 Rate Class And RTSR Rates'!F33 -> NA | G33: ='B1.1 Rate Class And RTSR Rates'!J33 -> 0 | I33: ='E1.2 Adj Conn to Fcst Whsl'!S33 -> 0 | K33: 0
C34: ='B1.1 Rate Class And RTSR Rates'!D34 -> Rate Class 13 | E34: ='B1.1 Rate Class And RTSR Rates'!F34 -> NA | G34: ='B1.1 Rate Class And RTSR Rates'!J34 -> 0 | I34: ='E1.2 Adj Conn to Fcst Whsl'!S34 -> 0 | K34: 0
C35: ='B1.1 Rate Class And RTSR Rates'!D35 -> Rate Class 14 | E35: ='B1.1 Rate Class And RTSR Rates'!F35 -> NA | G35: ='B1.1 Rate Class And RTSR Rates'!J35 -> 0 | I35: ='E1.2 Adj Conn to Fcst Whsl'!S35 -> 0 | K35: 0
C36: ='B1.1 Rate Class And RTSR Rates'!D36 -> Rate Class 15 | E36: ='B1.1 Rate Class And RTSR Rates'!F36 -> NA | G36: ='B1.1 Rate Class And RTSR Rates'!J36 -> 0 | I36: ='E1.2 Adj Conn to Fcst Whsl'!S36 -> 0 | K36: 0
C37: ='B1.1 Rate Class And RTSR Rates'!D37 -> Rate Class 16 | E37: ='B1.1 Rate Class And RTSR Rates'!F37 -> NA | G37: ='B1.1 Rate Class And RTSR Rates'!J37 -> 0 | I37: ='E1.2 Adj Conn to Fcst Whsl'!S37 -> 0 | K37: 0
C38: ='B1.1 Rate Class And RTSR Rates'!D38 -> Rate Class 17 | E38: ='B1.1 Rate Class And RTSR Rates'!F38 -> NA | G38: ='B1.1 Rate Class And RTSR Rates'!J38 -> 0 | I38: ='E1.2 Adj Conn to Fcst Whsl'!S38 -> 0 | K38: 0
C39: ='B1.1 Rate Class And RTSR Rates'!D39 -> Rate Class 18 | E39: ='B1.1 Rate Class And RTSR Rates'!F39 -> NA | G39: ='B1.1 Rate Class And RTSR Rates'!J39 -> 0 | I39: ='E1.2 Adj Conn to Fcst Whsl'!S39 -> 0 | K39: 0
C40: ='B1.1 Rate Class And RTSR Rates'!D40 -> Rate Class 19 | E40: ='B1.1 Rate Class And RTSR Rates'!F40 -> NA | G40: ='B1.1 Rate Class And RTSR Rates'!J40 -> 0 | I40: ='E1.2 Adj Conn to Fcst Whsl'!S40 -> 0 | K40: 0
C41: ='B1.1 Rate Class And RTSR Rates'!D41 -> Rate Class 20 | E41: ='B1.1 Rate Class And RTSR Rates'!F41 -> NA | G41: ='B1.1 Rate Class And RTSR Rates'!J41 -> 0 | I41: ='E1.2 Adj Conn to Fcst Whsl'!S41 -> 0 | K41: 0
C42: ='B1.1 Rate Class And RTSR Rates'!D42 -> Rate Class 21 | E42: ='B1.1 Rate Class And RTSR Rates'!F42 -> NA | G42: ='B1.1 Rate Class And RTSR Rates'!J42 -> 0 | I42: ='E1.2 Adj Conn to Fcst Whsl'!S42 -> 0 | K42: 0
C43: ='B1.1 Rate Class And RTSR Rates'!D43 -> Rate Class 22 | E43: ='B1.1 Rate Class And RTSR Rates'!F43 -> NA | G43: ='B1.1 Rate Class And RTSR Rates'!J43 -> 0 | I43: ='E1.2 Adj Conn to Fcst Whsl'!S43 -> 0 | K43: 0
C44: ='B1.1 Rate Class And RTSR Rates'!D44 -> Rate Class 23 | E44: ='B1.1 Rate Class And RTSR Rates'!F44 -> NA | G44: ='B1.1 Rate Class And RTSR Rates'!J44 -> 0 | I44: ='E1.2 Adj Conn to Fcst Whsl'!S44 -> 0 | K44: 0
C45: ='B1.1 Rate Class And RTSR Rates'!D45 -> Rate Class 24 | E45: ='B1.1 Rate Class And RTSR Rates'!F45 -> NA | G45: ='B1.1 Rate Class And RTSR Rates'!J45 -> 0 | I45: ='E1.2 Adj Conn to Fcst Whsl'!S45 -> 0 | K45: 0
C46: ='B1.1 Rate Class And RTSR Rates'!D46 -> Rate Class 25 | E46: ='B1.1 Rate Class And RTSR Rates'!F46 -> NA | G46: ='B1.1 Rate Class And RTSR Rates'!J46 -> 0 | I46: ='E1.2 Adj Conn to Fcst Whsl'!S46 -> 0 | K46: 0

Sheet Z1.0 OEB Control Sheet (hidden)
A1: Sheet Number | B1: Assignment | C1: Sheet Title | D1: Core Sheet Name | E1: Chrs | F1: OEB Audit | G1: Purpose of Sheet
A2: Sheet1 | B2: A1.1 | C2: LDC Information | D2: A1.1 LDC Information | E2: =LEN(D2) -> 20 | F2: No | G2: Enter LDC Data
A3: Sheet2 | B3: A2.1 | C3: Table of Contents | D3: A2.1 Table of Contents | E3: 22 | F3: No | G3: Table of Contents
A4: Sheet3 | B4: B1.1 | C4: Rate Class And 2010 RTSR Rates | D4: B1.1 Rate Class And RTSR Rates | E4: 30 | F4: No | G4: Enter Rate Class And RTSR Rates
A5: Sheet4 | B5: B1.2 | C5: 2009 Distributor Billing Determinants | D5: B1.2 Dist Billing Determinants | E5: 30 | F5: No | G5: Enter Distributor Billing Determinants
A6: Sheet5 | B6: B1.3 | C6: Uniform Transmission and Hydro One Sub-Transmission Rates | D6: B1.3 UTR's and Sub-Transmission | E6: 31 | F6: No | G6: Current and Forecasted UTR's and Hydro One Sub-Transmission Rates
A7: Sheet6 | B7: C1.1 | C7: 2009 Historical Wholesale Transmission | D7: C1.1 Historical Wholesale | E7: 25 | F7: No | G7: Enter Historical Wholesale Transmission
A8: Sheet7 | B8: C1.2 | C8: Current Wholesale Transmission | D8: C1.2 Current Wholesale | E8: =LEN(D10) -> 29 | F8: No | G8: Calculates Current Wholesale Transmission
A9: Sheet8 | B9: C1.3 | C9: Forecast Wholesale Transmission | D9: C1.3 Forecast Wholesale | E9: 23 | F9: No | G9: Calculates Forecast Wholesale Transmission
A10: Sheet9 | B10: D1.1 | C10: Adjust RTSR-Network to Current Network Wholesale | D10: D1.1 Adj Network to Curr Whsl | E10: 29 | F10: No | G10: Calculates the Adjustment for RTSR-Network needed to recover Current Wholesale
A11: Sheet10 | B11: D1.2 | C11: Adjust RTSR-Connection to Current Connection Wholesale | D11: D1.2 Adj Conn to Curr Whsl | E11: 26 | F11: No | G11: Calculates the Adjustment for RTSR-Connection needed to recover Current Wholesale
A12: Sheet11 | B12: E1.1 | C12: Adjust RTSR-Network to Forecast Network Wholesale | D12: E1.1 Adj Network to Fcst Whsl | E12: 29 | F12: No | G12: Calculates the Adjustment for RTSR-Network needed to recover Forecast Wholesale
A13: Sheet12 | B13: E1.2 | C13: Adjust RTSR-Connection to Forecast Connection Wholesale | D13: E1.2 Adj Conn to Fcst Whsl | E13: 26 | F13: No | G13: Calculates the Adjustment for RTSR-Connection needed to recover Forecast Wholesale
A14: Sheet13 | B14: F1.1 | C14: IRM RTSR Adjustment Calculation - Network | D14: F1.1 IRM RTSR Adj - Network | E14: 27 | F14: No | G14: Calculates the IRM RTSR Adjustment Calculation - Network for Rate Generator
A15: Sheet14 | B15: F1.2 | C15: IRM RTSR Adjustment Calculation - Connection | D15: F1.2 IRM RTSR Adj - Connection | E15: 30 | F15: No | G15: Calculates the IRM RTSR Adjustment Calculation - Connection for Rate Generator
A16: Sheet13 | B16: Z1.0 | C16: OEB Control Sheet | D16: Z1.0 OEB Control Sheet | E16: 22 | F16: N/A | G16: Not Shown
